Workbook

Sheet Product-Sales List-2013
C1: TURKISH CYPRIOT CHAMBER OF COMMERCE
B5: Monthly Report of the Turkish Cypriot Chamber of Commerce according to Article 8 of Commission Regulation No 1480/2004
B6: Reporting Period: 01/01/2013 – 31/12/2013 | AD6: ANNEX I
B8: PRODUCT SECTION | C8: PRODUCT GROUP | D8: PRODUCT DESCRIPTION AND CODE | E8: SPREAD OF VALUES OF SALES THROUGH GREENLINE IN DECEMBER 2013 | F8: SPREAD OF VALUES OF ACCOMPANYING DOCUMENTS ISSUED IN DECEMBER 2013 | G8: SPREAD OF VALUES OF SALES THROUGH GREENLINE IN NOVEMBER 2013 | H8: SPREAD OF VALUES OF ACCOMPANYING DOCUMENTS ISSUED IN NOVEMBER 2013 | I8: SPREAD OF VALUES OF SALES* THROUGH GREENLINE IN OCTOBER 2013 | J8: SPREAD OF VALUES OF ACCOMPANYING DOCUMENTS ISSUED IN OCTOBER 2013 | K8: SPREAD OF VALUES OF SALES* THROUGH GREENLINE IN SEPTEMBER 2013 | L8: SPREAD OF VALUES OF ACCOMPANYING DOCUMENTS ISSUED IN SEPTEMBER 2013 | M8: SPREAD OF VALUES OF SALES* THROUGH GREENLINE IN AUGUST 2013 | N8: SPREAD OF VALUES OF ACCOMPANYING DOCUMENTS ISSUED IN AUGUST 2013 | O8: SPREAD OF VALUES OF SALES* THROUGH GREENLINE IN JULY 2013 | P8: SPREAD OF VALUES OF ACCOMPANYING DOCUMENTS ISSUED IN JULY 2013 | Q8: SPREAD OF VALUES OF SALES* THROUGH GREENLINE IN JUNE 2013 | R8: SPREAD OF VALUES OF ACCOMPANYING DOCUMENTS ISSUED IN JUNE 2013 | S8: SPREAD OF VALUES OF SALES* THROUGH GREENLINE IN MAY 2013 | T8: SPREAD OF VALUES OF ACCOMPANYING DOCUMENTS ISSUED IN MAY 2013 | U8: SPREAD OF VALUES OF SALES* THROUGH GREENLINE IN APRIL 2013 | V8: SPREAD OF VALUES OF ACCOMPANYING DOCUMENTS ISSUED IN APRIL 2013 | W8: SPREAD OF VALUES OF SALES* THROUGH GREENLINE IN MARCH 2013 | X8: SPREAD OF VALUES OF ACCOMPANYING DOCUMENTS ISSUED IN MARCH 2013 | Y8: SPREAD OF VALUES OF SALES* THROUGH GREENLINE IN FEBRUARY 2012 | Z8: SPREAD OF VALUES OF ACCOMPANYING DOCUMENTS ISSUED IN FEBRUARY 2013 | AA8: SPREAD OF VALUES OF SALES* THROUGH GREENLINE IN JANUARY 2013 | AB8: SPREAD OF VALUES OF ACCOMPANYING DOCUMENTS ISSUED IN JANUARY 2013 | AC8: TOTAL SPREAD OF VALUES OF SALES* THROUGH GREENLINE IN 2013 | AD8: TOTAL SPREAD OF VALUES OF ACCOMPANYING DOCUMENTS ISSUED THROUGH GREENLINE IN 2013
B9: ARTICLES OF STONE | C9: Building Stone | D9: Bims Blocks (6810.11) | E9: € 0.00 | F9: € 0.00 | G9: € 0.00 | H9: € 0.00 | I9: € 0.00 | J9: € 0.00 | K9: € 0.00 | L9: € 0.00 | M9: € 0.00 | N9: € 0.00 | O9: € 2,003.76 | P9: € 2,003.76 | Q9: € 0.00 | R9: € 0.00 | S9: € 0.00 | T9: € 0.00 | U9: € 0.00 | V9: € 0.00 | W9: € 0.00 | X9: € 0.00 | Y9: € 0.00 | Z9: € 0.00 | AA9: € 0.00 | AB9: € 0.00 | AC9: =+E9+G9+I9+K9+M9+O9+Q9+S9+U9+W9+Y9+AA9 -> € 2,003.76 | AD9: =+F9+H9+J9+L9+N9+P9+R9+T9+V9+X9+Z9+AB9 -> € 2,003.76
D10: Cyprus Stone Floorings, Coverings (6802) | E10: € 0.00 | F10: € 0.00 | G10: € 0.00 | H10: € 0.00 | I10: € 0.00 | J10: € 0.00 | K10: € 192.00 | L10: € 192.00 | M10: € 0.00 | N10: € 0.00 | O10: € 0.00 | P10: € 0.00 | Q10: € 0.00 | R10: € 0.00 | S10: € 0.00 | T10: € 0.00 | U10: € 384.00 | V10: € 384.00 | W10: € 0.00 | X10: € 0.00 | Y10: € 0.00 | Z10: € 0.00 | AA10: € 0.00 | AB10: € 0.00 | AC10: =+E10+G10+I10+K10+M10+O10+Q10+S10+U10+W10+Y10+AA10 -> € 576.00 | AD10: € 576.00
D11: Limassol Stone Floorings, Coverings (6802) | E11: € 0.00 | F11: € 0.00 | G11: € 0.00 | H11: € 0.00 | I11: € 0.00 | J11: € 0.00 | K11: € 0.00 | L11: € 0.00 | M11: € 0.00 | N11: € 0.00 | O11: € 0.00 | P11: € 0.00 | Q11: € 0.00 | R11: € 0.00 | S11: € 0.00 | T11: € 0.00 | U11: € 0.00 | V11: € 0.00 | W11: € 0.00 | X11: € 0.00 | Y11: € 0.00 | Z11: € 0.00 | AA11: € 0.00 | AB11: € 0.00 | AC11: € 0.00 | AD11: € 0.00
D12: Marble Floorings, Coverings (6802) | E12: € 1,389.64 | F12: € 1,389.64 | G12: € 1,068.41 | H12: € 1,068.41 | I12: € 1,153.00 | J12: € 1,153.00 | K12: € 536.00 | L12: € 536.00 | M12: € 2,044.62 | N12: € 3,463.20 | O12: € 411.00 | P12: € 411.00 | Q12: € 2,770.63 | R12: € 2,770.63 | S12: € 4,653.00 | T12: € 4,653.00 | U12: € 1,965.00 | V12: € 1,965.00 | W12: € 1,811.53 | X12: € 1,811.53 | Y12: € 1,216.28 | Z12: € 1,216.28 | AA12: € 3,795.37 | AB12: € 3,795.37 | AC12: € 22,814.48 | AD12: € 24,233.06
D13: Mosaic Floorings, Coverings (6802) | E13: € 0.00 | F13: € 0.00 | G13: € 0.00 | H13: € 0.00 | I13: € 334.31 | J13: € 334.31 | K13: € 4,160.60 | L13: € 7,935.43 | M13: € 0.00 | N13: € 0.00 | O13: € 1,156.25 | P13: € 2,551.75 | Q13: € 6,764.78 | R13: € 6,764.78 | S13: € 0.00 | T13: € 0.00 | U13: € 6,703.90 | V13: € 6,703.90 | W13: € 7,354.19 | X13: € 13,171.78 | Y13: € 1,382.00 | Z13: € 1,382.00 | AA13: € 2,142.35 | AB13: € 2,142.35 | AC13: € 29,998.38 | AD13: € 40,986.30
D14: Sandstone Floorings, Coverings (6802) | E14: € 0.00 | F14: € 0.00 | G14: € 0.00 | H14: € 0.00 | I14: € 0.00 | J14: € 0.00 | K14: € 0.00 | L14: € 0.00 | M14: € 0.00 | N14: € 0.00 | O14: € 0.00 | P14: € 0.00 | Q14: € 0.00 | R14: € 0.00 | S14: € 0.00 | T14: € 0.00 | U14: € 0.00 | V14: € 0.00 | W14: € 0.00 | X14: € 0.00 | Y14: € 0.00 | Z14: € 0.00 | AA14: € 0.00 | AB14: € 0.00 | AC14: € 0.00 | AD14: € 0.00
D15: Travertine Floorings, Coverings (6802) | E15: € 0.00 | F15: € 0.00 | G15: € 0.00 | H15: € 0.00 | I15: € 0.00 | J15: € 0.00 | K15: € 2,894.40 | L15: € 2,894.40 | M15: € 0.00 | N15: € 0.00 | O15: € 0.00 | P15: € 0.00 | Q15: € 4,000.00 | R15: € 4,000.00 | S15: € 0.00 | T15: € 0.00 | U15: € 0.00 | V15: € 0.00 | W15: € 0.00 | X15: € 0.00 | Y15: € 0.00 | Z15: € 0.00 | AA15: € 0.00 | AB15: € 0.00 | AC15: € 6,894.40 | AD15: € 6,894.40
D16: Granite Floorings, Coverings (6802) | E16: € 0.00 | F16: € 0.00 | G16: € 0.00 | H16: € 0.00 | I16: € 0.00 | J16: € 0.00 | K16: € 0.00 | L16: € 0.00 | M16: € 0.00 | N16: € 0.00 | O16: € 0.00 | P16: € 0.00 | Q16: € 0.00 | R16: € 0.00 | S16: € 0.00 | T16: € 0.00 | U16: € 0.00 | V16: € 0.00 | W16: € 1,605.00 | X16: € 1,605.00 | Y16: € 0.00 | Z16: € 0.00 | AA16: € 0.00 | AB16: € 0.00 | AC16: € 1,605.00 | AD16: € 1,605.00
D17: Yellowstone Floorings, Coverings (6802) | E17: € 2,558.00 | F17: € 2,558.00 | G17: € 9,884.00 | H17: € 10,084.00 | I17: € 14,900.43 | J17: € 17,746.43 | K17: € 9,172.00 | L17: € 9,172.00 | M17: € 4,353.00 | N17: € 4,353.00 | O17: € 8,915.50 | P17: € 9,643.50 | Q17: € 11,188.50 | R17: € 11,188.50 | S17: € 7,384.00 | T17: € 7,384.00 | U17: € 5,176.00 | V17: € 5,176.00 | W17: € 7,874.00 | X17: € 8,474.00 | Y17: € 7,687.00 | Z17: € 8,921.00 | AA17: € 5,399.00 | AB17: € 5,399.00 | AC17: € 94,491.43 | AD17: € 100,099.43
C18: Group Total | E18: =SUM(E9:E17) -> € 3,947.64 | F18: € 3,947.64 | G18: € 10,952.41 | H18: € 11,152.41 | I18: € 16,387.74 | J18: € 19,233.74 | K18: € 16,955.00 | L18: € 20,729.83 | M18: € 6,397.62 | N18: € 7,816.20 | O18: € 12,486.51 | P18: € 14,610.01 | Q18: € 24,723.91 | R18: € 24,723.91 | S18: € 12,037.00 | T18: € 12,037.00 | U18: € 14,228.90 | V18: € 14,228.90 | W18: € 18,644.72 | X18: € 25,062.31 | Y18: € 10,285.28 | Z18: € 11,519.28 | AA18: € 11,336.72 | AB18: =SUM(AB9:AB17) -> € 11,336.72 | AC18: € 158,383.45 | AD18: € 176,397.95
C19: Articles of cement, of concrete or of artificial stone | D19: Concrete Blocks and Tiles (6810.11) | E19: € 0.00 | F19: € 0.00 | G19: € 0.00 | H19: € 0.00 | I19: € 0.00 | J19: € 0.00 | K19: € 1,100.00 | L19: € 1,100.00 | M19: € 0.00 | N19: € 0.00 | O19: € 587.50 | P19: € 587.50 | Q19: € 0.00 | R19: € 0.00 | S19: € 0.00 | T19: € 0.00 | U19: € 0.00 | V19: € 0.00 | W19: € 0.00 | X19: € 0.00 | Y19: € 0.00 | Z19: € 0.00 | AA19: € 104.16 | AB19: € 104.16 | AC19: € 1,791.66 | AD19: € 1,791.66
C20: Group Total | E20: =SUM(E19) -> € 0.00 | F20: € 0.00 | G20: € 0.00 | H20: € 0.00 | I20: € 0.00 | J20: € 0.00 | K20: € 1,100.00 | L20: € 1,100.00 | M20: € 0.00 | N20: € 0.00 | O20: € 587.50 | P20: € 587.50 | Q20: € 0.00 | R20: € 0.00 | S20: € 0.00 | T20: € 0.00 | U20: € 0.00 | V20: € 0.00 | W20: € 0.00 | X20: € 0.00 | Y20: € 0.00 | Z20: € 0.00 | AA20: € 104.16 | AB20: =SUM(AB19) -> € 104.16 | AC20: € 1,791.66 | AD20: € 1,791.66
C21: Ceramic Products / Refractory Goods | D21: Bricks (6902) | E21: € 6,511.68 | F21: € 6,511.68 | G21: € 6,557.76 | H21: € 6,557.76 | I21: € 2,550.24 | J21: € 2,550.24 | K21: € 7,705.92 | L21: € 7,705.92 | M21: € 0.00 | N21: € 0.00 | O21: € 0.00 | P21: € 0.00 | Q21: € 11,189.52 | R21: € 11,189.52 | S21: € 15,569.40 | T21: € 15,569.40 | U21: € 14,651.28 | V21: € 14,651.28 | W21: € 7,650.75 | X21: € 7,650.75 | Y21: € 11,066.37 | Z21: € 11,066.37 | AA21: € 13,233.06 | AB21: € 13,233.06 | AC21: € 96,685.98 | AD21: € 96,685.98
D22: Statuettes and other ornamental ceramic articles (6913) | E22: € 0.00 | F22: € 0.00 | G22: € 0.00 | H22: € 0.00 | I22: € 0.00 | J22: € 0.00 | K22: € 265.67 | L22: € 265.67 | M22: € 0.00 | N22: € 0.00 | O22: € 0.00 | P22: € 0.00 | Q22: € 0.00 | R22: € 0.00 | S22: € 0.00 | T22: € 0.00 | U22: € 0.00 | V22: € 0.00 | W22: € 0.00 | X22: € 0.00 | Y22: € 0.00 | Z22: € 0.00 | AA22: € 0.00 | AB22: € 0.00 | AC22: € 265.67 | AD22: € 265.67
C23: Group Total | E23: =SUM(E21:E22) -> € 6,511.68 | F23: € 6,511.68 | G23: € 6,557.76 | H23: € 6,557.76 | I23: € 2,550.24 | J23: € 2,550.24 | K23: € 7,971.59 | L23: € 7,971.59 | M23: € 0.00 | N23: € 0.00 | O23: € 0.00 | P23: € 0.00 | Q23: € 11,189.52 | R23: € 11,189.52 | S23: € 15,569.40 | T23: € 15,569.40 | U23: € 14,651.28 | V23: € 14,651.28 | W23: € 7,650.75 | X23: € 7,650.75 | Y23: € 11,066.37 | Z23: € 11,066.37 | AA23: € 13,233.06 | AB23: € 13,233.06 | AC23: € 96,951.65 | AD23: € 96,951.65
C24: Glass and Glassware | D24: Double Glazing / Insulation Glass (7008) | E24: € 0.00 | F24: € 0.00 | G24: € 0.00 | H24: € 0.00 | I24: € 0.00 | J24: € 0.00 | K24: € 0.00 | L24: € 0.00 | M24: € 0.00 | N24: € 0.00 | O24: € 0.00 | P24: € 0.00 | Q24: € 0.00 | R24: € 0.00 | S24: € 0.00 | T24: € 0.00 | U24: € 0.00 | V24: € 0.00 | W24: € 0.00 | X24: € 0.00 | Y24: € 0.00 | Z24: € 0.00 | AA24: € 0.00 | AB24: € 0.00 | AC24: € 0.00 | AD24: € 0.00
D25: Tempered Glass (7007) | E25: € 0.00 | F25: € 0.00 | G25: € 0.00 | H25: € 0.00 | I25: € 0.00 | J25: € 0.00 | K25: € 0.00 | L25: € 0.00 | M25: € 0.00 | N25: € 0.00 | O25: € 0.00 | P25: € 0.00 | Q25: € 0.00 | R25: € 0.00 | S25: € 0.00 | T25: € 0.00 | U25: € 0.00 | V25: € 0.00 | W25: € 0.00 | X25: € 0.00 | Y25: € 0.00 | Z25: € 0.00 | AA25: € 0.00 | AB25: € 0.00 | AC25: € 0.00 | AD25: € 0.00
D26: Stained Glass (7007.1920) | E26: € 0.00 | F26: € 0.00 | G26: € 0.00 | H26: € 0.00 | I26: € 400.00 | J26: € 400.00 | K26: € 0.00 | L26: € 0.00 | M26: € 0.00 | N26: € 0.00 | O26: € 0.00 | P26: € 0.00 | Q26: € 0.00 | R26: € 0.00 | S26: € 0.00 | T26: € 0.00 | U26: € 0.00 | V26: € 0.00 | W26: € 0.00 | X26: € 0.00 | Y26: € 0.00 | Z26: € 0.00 | AA26: € 0.00 | AB26: € 0.00 | AC26: € 400.00 | AD26: € 400.00
D27: Glass (7005) | E27: € 0.00 | F27: € 0.00 | G27: € 0.00 | H27: € 0.00 | I27: € 0.00 | J27: € 0.00 | K27: € 0.00 | L27: € 0.00 | M27: € 600.00 | N27: € 600.00 | O27: € 0.00 | P27: € 0.00 | Q27: € 0.00 | R27: € 0.00 | S27: € 0.00 | T27: € 0.00 | U27: € 0.00 | V27: € 0.00 | W27: € 0.00 | X27: € 0.00 | Y27: € 0.00 | Z27: € 0.00 | AA27: € 0.00 | AB27: € 0.00 | AC27: € 600.00 | AD27: € 600.00
D28: Glass Mirror(7009) | E28: € 0.00 | F28: € 0.00 | G28: € 0.00 | H28: € 0.00 | I28: € 0.00 | J28: € 0.00 | K28: € 0.00 | L28: € 0.00 | M28: € 0.00 | N28: € 0.00 | O28: € 0.00 | P28: € 0.00 | Q28: € 0.00 | R28: € 0.00 | S28: € 0.00 | T28: € 0.00 | U28: € 0.00 | V28: € 0.00 | W28: € 0.00 | X28: € 0.00 | Y28: € 0.00 | Z28: € 0.00 | AA28: € 0.00 | AB28: € 0.00 | AC28: € 0.00 | AD28: € 0.00
C29: Group Total | E29: =SUM(E24:E28) -> € 0.00 | F29: € 0.00 | G29: € 0.00 | H29: € 0.00 | I29: € 400.00 | J29: € 400.00 | K29: € 0.00 | L29: € 0.00 | M29: € 600.00 | N29: € 600.00 | O29: € 0.00 | P29: € 0.00 | Q29: € 0.00 | R29: € 0.00 | S29: € 0.00 | T29: € 0.00 | U29: € 0.00 | V29: € 0.00 | W29: € 0.00 | X29: € 0.00 | Y29: € 0.00 | Z29: € 0.00 | AA29: € 0.00 | AB29: € 0.00 | AC29: € 1,000.00 | AD29: € 1,000.00
B30: Section Total | E30: =SUM(E29,E23,E20,E18) -> € 10,459.32 | F30: € 10,459.32 | G30: € 17,510.17 | H30: € 17,710.17 | I30: € 19,337.98 | J30: € 22,183.98 | K30: € 26,026.59 | L30: € 29,801.42 | M30: € 6,997.62 | N30: € 8,416.20 | O30: € 13,074.01 | P30: € 15,197.51 | Q30: € 35,913.43 | R30: € 35,913.43 | S30: € 27,606.40 | T30: € 27,606.40 | U30: € 28,880.18 | V30: € 28,880.18 | W30: € 26,295.47 | X30: € 32,713.06 | Y30: € 21,351.65 | Z30: € 22,585.65 | AA30: € 24,673.94 | AB30: € 24,673.94 | AC30: € 258,126.76 | AD30: € 276,141.26
B31: MINERAL PRODUCTS | C31: Salt; Sulphur; Earths and Stone; Plastering Materials; Lime and Cement | D31: Cement (2523) | E31: € 0.00 | F31: € 0.00 | G31: € 0.00 | H31: € 0.00 | I31: € 0.00 | J31: € 0.00 | K31: € 0.00 | L31: € 0.00 | M31: € 0.00 | N31: € 0.00 | O31: € 0.00 | P31: € 0.00 | Q31: € 0.00 | R31: € 0.00 | S31: € 0.00 | T31: € 0.00 | U31: € 0.00 | V31: € 0.00 | W31: € 0.00 | X31: € 0.00 | Y31: € 0.00 | Z31: € 0.00 | AA31: € 0.00 | AB31: € 0.00 | AC31: € 0.00 | AD31: € 0.00
D32: Pebbles(2517.10.10) | E32: € 0.00 | F32: € 0.00 | G32: € 0.00 | H32: € 0.00 | I32: € 0.00 | J32: € 0.00 | K32: € 620.00 | L32: € 620.00 | M32: € 0.00 | N32: € 0.00 | O32: € 0.00 | P32: € 0.00 | Q32: € 0.00 | R32: € 0.00 | S32: € 0.00 | T32: € 0.00 | U32: € 0.00 | V32: € 0.00 | W32: € 0.00 | X32: € 0.00 | Y32: € 0.00 | Z32: € 0.00 | AA32: € 0.00 | AB32: € 0.00 | AC32: € 620.00 | AD32: € 620.00
C33: Group Total | E33: =SUM(E31:E32) -> € 0.00 | F33: € 0.00 | G33: € 0.00 | H33: € 0.00 | I33: € 0.00 | J33: € 0.00 | K33: € 620.00 | L33: € 620.00 | M33: € 0.00 | N33: € 0.00 | O33: € 0.00 | P33: € 0.00 | Q33: € 0.00 | R33: € 0.00 | S33: € 0.00 | T33: € 0.00 | U33: € 0.00 | V33: € 0.00 | W33: € 0.00 | X33: € 0.00 | Y33: € 0.00 | Z33: € 0.00 | AA33: € 0.00 | AB33: € 0.00 | AC33: € 620.00 | AD33: € 620.00
C34: Mineral Fuels Mineral Oils and Products of the Distillation Bituminous Substances Mineral Waxes | D34: Electrical Energy (2716) | E34: € 0.00 | F34: € 0.00 | G34: € 0.00 | H34: € 0.00 | I34: € 0.00 | J34: € 0.00 | K34: € 0.00 | L34: € 0.00 | M34: € 0.00 | N34: € 0.00 | O34: € 0.00 | P34: € 0.00 | Q34: € 0.00 | R34: € 0.00 | S34: € 0.00 | T34: € 0.00 | U34: € 0.00 | V34: € 0.00 | W34: € 0.00 | X34: € 0.00 | Y34: € 0.00 | Z34: € 0.00 | AA34: € 0.00 | AB34: € 0.00 | AC34: € 0.00 | AD34: € 0.00
C35: Group Total | E35: =SUM(E34) -> € 0.00 | F35: € 0.00 | G35: € 0.00 | H35: € 0.00 | I35: € 0.00 | J35: € 0.00 | K35: € 0.00 | L35: € 0.00 | M35: € 0.00 | N35: € 0.00 | O35: € 0.00 | P35: € 0.00 | Q35: € 0.00 | R35: € 0.00 | S35: € 0.00 | T35: € 0.00 | U35: € 0.00 | V35: € 0.00 | W35: € 0.00 | X35: € 0.00 | Y35: € 0.00 | Z35: € 0.00 | AA35: € 0.00 | AB35: =SUM(AB34) -> € 0.00 | AC35: € 0.00 | AD35: € 0.00
B36: Section Total | E36: =E33+E35 -> € 0.00 | F36: € 0.00 | G36: € 0.00 | H36: € 0.00 | I36: € 0.00 | J36: € 0.00 | K36: € 620.00 | L36: € 620.00 | M36: € 0.00 | N36: € 0.00 | O36: € 0.00 | P36: € 0.00 | Q36: € 0.00 | R36: € 0.00 | S36: € 0.00 | T36: € 0.00 | U36: € 0.00 | V36: € 0.00 | W36: € 0.00 | X36: € 0.00 | Y36: € 0.00 | Z36: € 0.00 | AA36: € 0.00 | AB36: € 0.00 | AC36: € 620.00 | AD36: € 620.00
B37: BASE METALS AND ARTICLES | C37: Aluminum Products | D37: Aluminum doors, windows, shutters, balustrades and accessories (7610) | E37: € 700.00 | F37: € 700.00 | G37: € 32,078.00 | H37: € 32,078.00 | I37: € 52,870.00 | J37: € 52,870.00 | K37: € 0.00 | L37: € 0.00 | M37: € 0.00 | N37: € 0.00 | O37: € 0.00 | P37: € 0.00 | Q37: € 200.00 | R37: € 200.00 | S37: € 1,800.00 | T37: € 1,800.00 | U37: € 2,200.00 | V37: € 2,200.00 | W37: € 0.00 | X37: € 0.00 | Y37: € 1,500.00 | Z37: € 1,500.00 | AA37: € 1,000.00 | AB37: € 1,000.00 | AC37: € 92,348.00 | AD37: € 92,348.00
D38: Scrap Aluminum (7602) | E38: € 3,868.00 | F38: € 3,980.00 | G38: € 6,883.00 | H38: € 7,900.00 | I38: € 7,090.00 | J38: € 8,000.00 | K38: € 3,740.36 | L38: € 4,952.36 | M38: € 0.00 | N38: € 0.00 | O38: € 0.00 | P38: € 0.00 | Q38: € 1,400.00 | R38: € 3,547.00 | S38: € 6,785.00 | T38: € 35,350.00 | U38: € 2,896.00 | V38: € 3,753.00 | W38: € 1,308.00 | X38: € 6,800.00 | Y38: € 2,532.00 | Z38: € 4,838.00 | AA38: € 5,300.00 | AB38: € 6,300.00 | AC38: € 41,802.36 | AD38: € 85,420.36
D39: Table, kitchen or other household articles and parts thereof, of aluminium (7615.11) | E39: € 0.00 | F39: € 0.00 | G39: € 0.00 | H39: € 0.00 | I39: € 156.00 | J39: € 156.00 | K39: € 0.00 | L39: € 0.00 | M39: € 0.00 | N39: € 0.00 | O39: € 0.00 | P39: € 0.00 | Q39: € 0.00 | R39: € 0.00 | S39: € 0.00 | T39: € 0.00 | U39: € 0.00 | V39: € 0.00 | W39: € 0.00 | X39: € 0.00 | Y39: € 0.00 | Z39: € 0.00 | AA39: € 0.00 | AB39: € 0.00 | AC39: € 156.00 | AD39: € 156.00
C40: Group Total | E40: =SUM(E37:E39) -> € 4,568.00 | F40: € 4,680.00 | G40: € 38,961.00 | H40: € 39,978.00 | I40: € 60,116.00 | J40: € 61,026.00 | K40: € 3,740.36 | L40: € 4,952.36 | M40: € 0.00 | N40: € 0.00 | O40: € 0.00 | P40: € 0.00 | Q40: € 1,600.00 | R40: € 3,747.00 | S40: € 8,585.00 | T40: € 37,150.00 | U40: € 5,096.00 | V40: € 5,953.00 | W40: € 1,308.00 | X40: € 6,800.00 | Y40: € 4,032.00 | Z40: € 6,338.00 | AA40: € 6,300.00 | AB40: € 7,300.00 | AC40: € 134,306.36 | AD40: € 177,924.36
C41: Articles of Metal | D41: Lead Ingot (7804) | E41: € 0.00 | F41: € 0.00 | G41: € 0.00 | H41: € 0.00 | I41: € 22,500.00 | J41: € 50,000.00 | K41: € 0.00 | L41: € 0.00 | M41: € 20,000.00 | N41: € 20,000.00 | O41: € 0.00 | P41: € 0.00 | Q41: € 17,700.00 | R41: € 25,000.00 | S41: € 5,625.00 | T41: € 22,500.00 | U41: € 10,275.50 | V41: € 18,750.00 | W41: € 11,625.00 | X41: € 37,500.00 | Y41: € 40,580.50 | Z41: € 79,500.00 | AA41: € 750.00 | AB41: € 750.00 | AC41: € 129,056.00 | AD41: € 254,000.00
D42: Scrap Bronze (7404.00.91) | E42: € 2,435.00 | F42: € 2,555.00 | G42: € 3,020.00 | H42: € 5,120.00 | I42: € 5,500.00 | J42: € 5,500.00 | K42: € 2,122.40 | L42: € 2,450.00 | M42: € 300.00 | N42: € 9,700.00 | O42: € 0.00 | P42: € 0.00 | Q42: € 2,000.00 | R42: € 2,000.00 | S42: € 200.00 | T42: € 1,000.00 | U42: € 1,350.00 | V42: € 1,350.00 | W42: € 490.00 | X42: € 1,000.00 | Y42: € 6,310.00 | Z42: € 7,750.00 | AA42: € 1,150.00 | AB42: € 1,150.00 | AC42: € 24,877.40 | AD42: € 39,575.00
D43: Scrap Copper (7404) | E43: € 1,955.00 | F43: € 4,950.00 | G43: € 9,000.00 | H43: € 12,900.00 | I43: € 7,020.00 | J43: € 9,000.00 | K43: € 11,557.00 | L43: € 12,800.00 | M43: € 67,500.00 | N43: € 67,500.00 | O43: € 0.00 | P43: € 0.00 | Q43: € 5,200.00 | R43: € 5,200.00 | S43: € 1,908.00 | T43: € 6,200.00 | U43: € 3,800.00 | V43: € 5,300.00 | W43: € 2,200.00 | X43: € 5,600.00 | Y43: € 300.00 | Z43: € 300.00 | AA43: € 4,350.00 | AB43: € 15,350.00 | AC43: € 114,790.00 | AD43: € 145,100.00
D44: Scrap Steel (7204) | E44: € 3,015.00 | F44: € 5,805.00 | G44: € 1,200.00 | H44: € 1,200.00 | I44: € 0.00 | J44: € 0.00 | K44: € 6,453.25 | L44: € 13,000.00 | M44: € 8,793.00 | N44: € 10,392.00 | O44: € 4,460.00 | P44: € 9,698.00 | Q44: € 3,744.00 | R44: € 14,325.00 | S44: € 8,081.00 | T44: € 25,425.00 | U44: € 32,613.00 | V44: € 44,250.00 | W44: € 7,452.00 | X44: € 16,625.00 | Y44: € 1,700.00 | Z44: € 1,700.00 | AA44: € 18,471.60 | AB44: € 31,650.00 | AC44: € 95,982.85 | AD44: € 174,070.00
D45: Scrap Iron (7204) | E45: € 1,911.00 | F45: € 15,000.00 | G45: € 13,150.00 | H45: € 16,000.00 | I45: € 7,364.00 | J45: € 12,000.00 | K45: € 0.00 | L45: € 0.00 | M45: € 0.00 | N45: € 0.00 | O45: € 0.00 | P45: € 0.00 | Q45: € 0.00 | R45: € 0.00 | S45: € 0.00 | T45: € 0.00 | U45: € 0.00 | V45: € 0.00 | W45: € 0.00 | X45: € 0.00 | Y45: € 0.00 | Z45: € 0.00 | AA45: € 0.00 | AB45: € 0.00 | AC45: € 22,425.00 | AD45: € 43,000.00
D46: Scrap Chrome (7204.21) | E46: € 0.00 | F46: € 0.00 | G46: € 0.00 | H46: € 0.00 | I46: € 0.00 | J46: € 0.00 | K46: € 0.00 | L46: € 0.00 | M46: € 0.00 | N46: € 0.00 | O46: € 0.00 | P46: € 0.00 | Q46: € 0.00 | R46: € 0.00 | S46: € 0.00 | T46: € 0.00 | U46: € 0.00 | V46: € 0.00 | W46: € 0.00 | X46: € 0.00 | Y46: € 0.00 | Z46: € 0.00 | AA46: € 0.00 | AB46: € 0.00 | AC46: € 0.00 | AD46: € 0.00
D47: Grills (7321) | E47: € 0.00 | F47: € 0.00 | G47: € 0.00 | H47: € 0.00 | I47: € 0.00 | J47: € 0.00 | K47: € 0.00 | L47: € 0.00 | M47: € 0.00 | N47: € 0.00 | O47: € 0.00 | P47: € 0.00 | Q47: € 0.00 | R47: € 0.00 | S47: € 0.00 | T47: € 0.00 | U47: € 0.00 | V47: € 0.00 | W47: € 0.00 | X47: € 0.00 | Y47: € 0.00 | Z47: € 0.00 | AA47: € 0.00 | AB47: € 0.00 | AC47: € 0.00 | AD47: € 0.00
C48: Group Total | E48: =SUM(E41:E47) -> € 9,316.00 | F48: € 28,310.00 | G48: € 26,370.00 | H48: € 35,220.00 | I48: € 42,384.00 | J48: € 76,500.00 | K48: € 20,132.65 | L48: € 28,250.00 | M48: € 96,593.00 | N48: € 107,592.00 | O48: € 4,460.00 | P48: € 9,698.00 | Q48: € 28,644.00 | R48: € 46,525.00 | S48: € 15,814.00 | T48: € 55,125.00 | U48: € 48,038.50 | V48: € 69,650.00 | W48: € 21,767.00 | X48: € 60,725.00 | Y48: € 48,890.50 | Z48: € 89,250.00 | AA48: € 24,721.60 | AB48: € 48,900.00 | AC48: € 387,131.25 | AD48: € 655,745.00
C49: Iron and Steel Products | D49: Doors, banisters, handrails of metalwork (7308) | E49: € 0.00 | F49: € 0.00 | G49: € 0.00 | H49: € 0.00 | I49: € 0.00 | J49: € 0.00 | K49: € 0.00 | L49: € 0.00 | M49: € 2,270.00 | N49: € 2,270.00 | O49: € 0.00 | P49: € 0.00 | Q49: € 0.00 | R49: € 0.00 | S49: € 1,000.00 | T49: € 1,000.00 | U49: € 0.00 | V49: € 0.00 | W49: € 3,750.00 | X49: € 6,000.00 | Y49: € 0.00 | Z49: € 0.00 | AA49: € 0.00 | AB49: € 0.00 | AC49: € 7,020.00 | AD49: € 9,270.00
D50: Table, kitchen or other household articles and parts thereof, of iron or steel (7323.9991.90) | E50: € 0.00 | F50: € 0.00 | G50: € 0.00 | H50: € 0.00 | I50: € 0.00 | J50: € 0.00 | K50: € 6,272.00 | L50: € 6,272.00 | M50: € 10,690.00 | N50: € 10,690.00 | O50: € 5,065.00 | P50: € 5,065.00 | Q50: € 10,575.00 | R50: € 10,575.00 | S50: € 0.00 | T50: € 0.00 | U50: € 0.00 | V50: € 0.00 | W50: € 0.00 | X50: € 0.00 | Y50: € 0.00 | Z50: € 0.00 | AA50: € 0.00 | AB50: € 0.00 | AC50: € 32,602.00 | AD50: € 32,602.00
D51: Other cast articles of iron and steel (7325) | E51: € 0.00 | F51: € 0.00 | G51: € 0.00 | H51: € 0.00 | I51: € 0.00 | J51: € 0.00 | K51: € 0.00 | L51: € 0.00 | M51: € 0.00 | N51: € 0.00 | O51: € 0.00 | P51: € 0.00 | Q51: € 0.00 | R51: € 0.00 | S51: € 0.00 | T51: € 0.00 | U51: € 0.00 | V51: € 0.00 | W51: € 120.00 | X51: € 120.00 | Y51: € 0.00 | Z51: € 0.00 | AA51: € 0.00 | AB51: € 0.00 | AC51: € 120.00 | AD51: € 120.00
D52: Small cages and aviaries (7326.2030) | E52: € 0.00 | F52: € 0.00 | G52: € 0.00 | H52: € 0.00 | I52: € 0.00 | J52: € 0.00 | K52: € 0.00 | L52: € 0.00 | M52: € 0.00 | N52: € 0.00 | O52: € 0.00 | P52: € 0.00 | Q52: € 0.00 | R52: € 0.00 | S52: € 0.00 | T52: € 0.00 | U52: € 0.00 | V52: € 0.00 | W52: € 0.00 | X52: € 0.00 | Y52: € 751.00 | Z52: € 751.00 | AA52: € 265.00 | AB52: € 265.00 | AC52: € 1,016.00 | AD52: € 1,016.00
D53: Galvanized Stands (7326.9070) | E53: € 70.00 | F53: € 70.00 | G53: € 0.00 | H53: € 0.00 | I53: € 500.00 | J53: € 500.00 | K53: € 280.00 | L53: € 280.00 | M53: € 0.00 | N53: € 0.00 | O53: € 0.00 | P53: € 0.00 | Q53: € 0.00 | R53: € 0.00 | S53: € 0.00 | T53: € 0.00 | U53: € 0.00 | V53: € 0.00 | W53: € 0.00 | X53: € 0.00 | Y53: € 0.00 | Z53: € 0.00 | AA53: € 0.00 | AB53: € 0.00 | AC53: € 850.00 | AD53: € 850.00
C54: Group Total | E54: =SUM(E49:E53) -> € 70.00 | F54: € 70.00 | G54: € 0.00 | H54: € 0.00 | I54: € 500.00 | J54: € 500.00 | K54: € 6,552.00 | L54: € 6,552.00 | M54: € 12,960.00 | N54: € 12,960.00 | O54: € 5,065.00 | P54: € 5,065.00 | Q54: € 10,575.00 | R54: € 10,575.00 | S54: € 1,000.00 | T54: € 1,000.00 | U54: € 0.00 | V54: € 0.00 | W54: € 3,870.00 | X54: € 6,120.00 | Y54: € 751.00 | Z54: € 751.00 | AA54: € 265.00 | AB54: € 265.00 | AC54: € 41,608.00 | AD54: € 43,858.00
C55: Miscallenous Articles of Base Metal | D55: office or desk equipment, of base metal (8304) | E55: € 0.00 | F55: € 0.00 | G55: € 0.00 | H55: € 0.00 | I55: € 0.00 | J55: € 0.00 | K55: € 0.00 | L55: € 0.00 | M55: € 0.00 | N55: € 0.00 | O55: € 0.00 | P55: € 0.00 | Q55: € 0.00 | R55: € 0.00 | S55: € 0.00 | T55: € 0.00 | U55: € 0.00 | V55: € 0.00 | W55: € 0.00 | X55: € 0.00 | Y55: € 0.00 | Z55: € 0.00 | AA55: € 0.00 | AB55: € 0.00 | AC55: € 0.00 | AD55: € 0.00
D56: Sign-plates, nameplates, address-plates and similar plates, numbers, letters and other symbols, of base metal (8310) | E56: € 0.00 | F56: € 0.00 | G56: € 0.00 | H56: € 0.00 | I56: € 0.00 | J56: € 0.00 | K56: € 0.00 | L56: € 0.00 | M56: € 0.00 | N56: € 0.00 | O56: € 0.00 | P56: € 0.00 | Q56: € 0.00 | R56: € 0.00 | S56: € 0.00 | T56: € 0.00 | U56: € 0.00 | V56: € 0.00 | W56: € 0.00 | X56: € 0.00 | Y56: € 0.00 | Z56: € 0.00 | AA56: € 0.00 | AB56: € 0.00 | AC56: € 0.00 | AD56: € 0.00
D57: Hat-racks, hat-pegs, hangers, brackets and similar fixtures (8302.50) | E57: € 1,100.00 | F57: € 1,100.00 | G57: € 0.00 | H57: € 0.00 | I57: € 0.00 | J57: € 0.00 | K57: € 0.00 | L57: € 0.00 | M57: € 0.00 | N57: € 0.00 | O57: € 0.00 | P57: € 0.00 | Q57: € 0.00 | R57: € 0.00 | S57: € 1,100.00 | T57: € 1,100.00 | U57: € 0.00 | V57: € 0.00 | W57: € 0.00 | X57: € 0.00 | Y57: € 0.00 | Z57: € 0.00 | AA57: € 0.00 | AB57: € 0.00 | AC57: € 2,200.00 | AD57: € 2,200.00
C58: Group Total | E58: =SUM(E55:E57) -> € 1,100.00 | F58: € 1,100.00 | G58: € 0.00 | H58: € 0.00 | I58: € 0.00 | J58: € 0.00 | K58: € 0.00 | L58: € 0.00 | M58: € 0.00 | N58: € 0.00 | O58: € 0.00 | P58: € 0.00 | Q58: € 0.00 | R58: € 0.00 | S58: € 1,100.00 | T58: € 1,100.00 | U58: € 0.00 | V58: € 0.00 | W58: € 0.00 | X58: € 0.00 | Y58: € 0.00 | Z58: € 0.00 | AA58: € 0.00 | AB58: € 0.00 | AC58: € 2,200.00 | AD58: € 2,200.00
B59: Section Total | E59: =E40+E48+E54+E58 -> € 15,054.00 | F59: € 34,160.00 | G59: € 65,331.00 | H59: € 75,198.00 | I59: € 103,000.00 | J59: € 138,026.00 | K59: € 30,425.01 | L59: € 39,754.36 | M59: € 109,553.00 | N59: € 120,552.00 | O59: € 9,525.00 | P59: € 14,763.00 | Q59: € 40,819.00 | R59: € 60,847.00 | S59: € 26,499.00 | T59: € 94,375.00 | U59: € 53,134.50 | V59: € 75,603.00 | W59: € 26,945.00 | X59: € 73,645.00 | Y59: € 53,673.50 | Z59: € 96,339.00 | AA59: € 31,286.60 | AB59: € 56,465.00 | AC59: € 565,245.61 | AD59: € 879,727.36
B60: CHEMICAL PRODUCTS | C60: Miscallaneous Chemical Products | D60: Construction Chemicals (3214) | E60: € 0.00 | F60: € 0.00 | G60: € 0.00 | H60: € 0.00 | I60: € 0.00 | J60: € 0.00 | K60: € 0.00 | L60: € 0.00 | M60: € 0.00 | N60: € 0.00 | O60: € 0.00 | P60: € 0.00 | Q60: € 0.00 | R60: € 0.00 | S60: € 0.00 | T60: € 0.00 | U60: € 0.00 | V60: € 0.00 | W60: € 0.00 | X60: € 0.00 | Y60: € 620.00 | Z60: € 620.00 | AA60: € 0.00 | AB60: 0 | AC60: € 620.00 | AD60: € 620.00
D61: Paint (3209) | E61: € 0.00 | F61: € 0.00 | G61: € 0.00 | H61: € 0.00 | I61: € 0.00 | J61: € 0.00 | K61: € 0.00 | L61: € 0.00 | M61: € 0.00 | N61: € 0.00 | O61: € 0.00 | P61: € 0.00 | Q61: € 0.00 | R61: € 0.00 | S61: € 0.00 | T61: € 0.00 | U61: € 0.00 | V61: € 0.00 | W61: € 0.00 | X61: € 0.00 | Y61: € 0.00 | Z61: € 0.00 | AA61: € 0.00 | AB61: 0 | AC61: € 0.00 | AD61: € 0.00
D62: Products suitable for use as glues or adhesives, put up for retail sale as glues or adhesives (3506.10) | E62: € 0.00 | F62: € 0.00 | G62: € 0.00 | H62: € 0.00 | I62: € 0.00 | J62: € 0.00 | K62: € 0.00 | L62: € 0.00 | M62: € 0.00 | N62: € 0.00 | O62: € 0.00 | P62: € 0.00 | Q62: € 0.00 | R62: € 0.00 | S62: € 0.00 | T62: € 0.00 | U62: € 0.00 | V62: € 0.00 | W62: € 0.00 | X62: € 0.00 | Y62: € 0.00 | Z62: € 0.00 | AA62: € 0.00 | AB62: € 0.00 | AC62: € 0.00 | AD62: € 0.00
D63: Prepared Binders (3824) | E63: € 0.00 | F63: € 0.00 | G63: € 0.00 | H63: € 0.00 | I63: € 0.00 | J63: € 0.00 | K63: € 0.00 | L63: € 0.00 | M63: € 0.00 | N63: € 0.00 | O63: € 0.00 | P63: € 0.00 | Q63: € 0.00 | R63: € 0.00 | S63: € 0.00 | T63: € 0.00 | U63: € 0.00 | V63: € 0.00 | W63: € 0.00 | X63: € 0.00 | Y63: € 0.00 | Z63: € 0.00 | AA63: € 0.00 | AB63: € 0.00 | AC63: € 0.00 | AD63: € 0.00
C64: Group Total | E64: =SUM(E60:E63) -> € 0.00 | F64: € 0.00 | G64: € 0.00 | H64: € 0.00 | I64: € 0.00 | J64: € 0.00 | K64: € 0.00 | L64: € 0.00 | M64: € 0.00 | N64: € 0.00 | O64: € 0.00 | P64: € 0.00 | Q64: € 0.00 | R64: € 0.00 | S64: € 0.00 | T64: € 0.00 | U64: € 0.00 | V64: € 0.00 | W64: € 0.00 | X64: € 0.00 | Y64: € 620.00 | Z64: € 620.00 | AA64: € 0.00 | AB64: =SUM(AB60:AB63) -> € 0.00 | AC64: € 620.00 | AD64: € 620.00
B65: Section Total | E65: =SUM(E64) -> € 0.00 | F65: € 0.00 | G65: € 0.00 | H65: € 0.00 | I65: € 0.00 | J65: € 0.00 | K65: € 0.00 | L65: € 0.00 | M65: € 0.00 | N65: € 0.00 | O65: € 0.00 | P65: € 0.00 | Q65: € 0.00 | R65: € 0.00 | S65: € 0.00 | T65: € 0.00 | U65: € 0.00 | V65: € 0.00 | W65: € 0.00 | X65: € 0.00 | Y65: € 620.00 | Z65: € 620.00 | AA65: € 0.00 | AB65: =SUM(AB64) -> € 0.00 | AC65: € 620.00 | AD65: € 620.00
B66: MACHINERY AND MECHANICAL APPLIANCES; ELECTRICAL EQUIPMENT | C66: Electrical Machinery and Equipment and Parts Thereof | D66: Cables (8544) | E66: € 0.00 | F66: € 0.00 | G66: € 310.00 | H66: € 310.00 | I66: € 0.00 | J66: € 0.00 | K66: € 0.00 | L66: € 0.00 | M66: € 3,234.60 | N66: € 3,234.60 | O66: € 1,320.00 | P66: € 9,700.00 | Q66: € 7,556.00 | R66: € 7,556.00 | S66: € 0.00 | T66: € 0.00 | U66: € 10,280.00 | V66: € 10,280.00 | W66: € 0.00 | X66: € 0.00 | Y66: € 3,970.79 | Z66: € 3,970.79 | AA66: € 0.00 | AB66: 0 | AC66: € 26,671.39 | AD66: € 35,051.39
D67: Scrap Cables (8548.9090) | E67: € 1,600.00 | F67: € 1,600.00 | G67: € 1,750.00 | H67: € 2,100.00 | I67: € 600.00 | J67: € 1,200.00 | K67: € 400.00 | L67: € 1,200.00 | M67: € 0.00 | N67: € 0.00 | O67: € 0.00 | P67: € 0.00 | Q67: € 0.00 | R67: € 0.00 | S67: € 0.00 | T67: € 0.00 | U67: € 0.00 | V67: € 0.00 | W67: € 0.00 | X67: € 0.00 | Y67: € 0.00 | Z67: € 0.00 | AA67: € 0.00 | AB67: € 0.00 | AC67: € 4,350.00 | AD67: € 6,100.00
C68: Group Total | E68: =SUM(E66:E67) -> € 1,600.00 | F68: € 1,600.00 | G68: € 2,060.00 | H68: € 2,410.00 | I68: € 600.00 | J68: € 1,200.00 | K68: € 400.00 | L68: € 1,200.00 | M68: € 3,234.60 | N68: € 3,234.60 | O68: € 1,320.00 | P68: € 9,700.00 | Q68: € 7,556.00 | R68: € 7,556.00 | S68: € 0.00 | T68: € 0.00 | U68: € 10,280.00 | V68: € 10,280.00 | W68: € 0.00 | X68: € 0.00 | Y68: € 3,970.79 | Z68: € 3,970.79 | AA68: € 0.00 | AB68: € 0.00 | AC68: € 31,021.39 | AD68: € 41,151.39
C69: Machinery and Mechanical Appliances | D69: Conbined Refrigerator-Freezers (8418.10) | E69: € 0.00 | F69: € 0.00 | G69: € 0.00 | H69: € 0.00 | I69: € 0.00 | J69: € 0.00 | K69: € 0.00 | L69: € 0.00 | M69: € 0.00 | N69: € 0.00 | O69: € 0.00 | P69: € 0.00 | Q69: € 0.00 | R69: € 0.00 | S69: € 0.00 | T69: € 0.00 | U69: € 0.00 | V69: € 0.00 | W69: € 0.00 | X69: € 0.00 | Y69: € 0.00 | Z69: € 0.00 | AA69: € 0.00 | AB69: € 0.00 | AC69: € 0.00 | AD69: € 0.00
D70: Scrap Dynamo ( 8548.1010) | E70: € 68.40 | F70: € 111.60 | G70: € 108.00 | H70: € 108.00 | I70: € 0.00 | J70: € 0.00 | K70: € 900.00 | L70: € 900.00 | M70: € 0.00 | N70: € 0.00 | O70: € 0.00 | P70: € 0.00 | Q70: € 0.00 | R70: € 0.00 | S70: € 0.00 | T70: € 0.00 | U70: € 0.00 | V70: € 0.00 | W70: € 0.00 | X70: € 0.00 | Y70: € 0.00 | Z70: € 0.00 | AA70: € 0.00 | AB70: € 0.00 | AC70: € 1,076.40 | AD70: € 1,119.60
D71: Scrap Electrical Engine (8548.9090) | E71: € 2,100.00 | F71: € 2,100.00 | G71: € 1,800.00 | H71: € 1,800.00 | I71: € 750.00 | J71: € 16,950.00 | K71: € 525.00 | L71: € 1,500.00 | M71: € 0.00 | N71: € 0.00 | O71: € 0.00 | P71: € 0.00 | Q71: € 0.00 | R71: € 0.00 | S71: € 0.00 | T71: € 0.00 | U71: € 0.00 | V71: € 0.00 | W71: € 0.00 | X71: € 0.00 | Y71: € 0.00 | Z71: € 0.00 | AA71: € 0.00 | AB71: € 0.00 | AC71: € 5,175.00 | AD71: € 22,350.00
C72: Group Total | E72: =SUM(E69:E71) -> € 2,168.40 | F72: € 2,211.60 | G72: € 1,908.00 | H72: € 1,908.00 | I72: € 750.00 | J72: € 16,950.00 | K72: € 1,425.00 | L72: € 2,400.00 | M72: € 0.00 | N72: € 0.00 | O72: € 0.00 | P72: € 0.00 | Q72: € 0.00 | R72: € 0.00 | S72: € 0.00 | T72: € 0.00 | U72: € 0.00 | V72: € 0.00 | W72: € 0.00 | X72: € 0.00 | Y72: € 0.00 | Z72: € 0.00 | AA72: € 0.00 | AB72: € 0.00 | AC72: € 6,251.40 | AD72: € 23,469.60
B73: Section Total | E73: =E68+E72 -> € 3,768.40 | F73: € 3,811.60 | G73: € 3,968.00 | H73: € 4,318.00 | I73: € 1,350.00 | J73: € 18,150.00 | K73: € 1,825.00 | L73: € 3,600.00 | M73: € 3,234.60 | N73: € 3,234.60 | O73: € 1,320.00 | P73: € 9,700.00 | Q73: € 7,556.00 | R73: € 7,556.00 | S73: € 0.00 | T73: € 0.00 | U73: € 10,280.00 | V73: € 10,280.00 | W73: € 0.00 | X73: € 0.00 | Y73: € 3,970.79 | Z73: € 3,970.79 | AA73: € 0.00 | AB73: € 0.00 | AC73: € 37,272.79 | AD73: € 64,620.99
B74: FURNITURE | C74: Wooden Furniture Parts | D74: Wooden furniture of a kind used in the dining room living room, bedroom etc. (9403) | E74: € 7,329.00 | F74: € 7,329.00 | G74: € 17,057.90 | H74: € 17,057.90 | I74: € 8,283.00 | J74: € 8,283.00 | K74: € 16,357.03 | L74: € 16,357.03 | M74: € 410.00 | N74: € 410.00 | O74: € 2,445.00 | P74: € 2,445.00 | Q74: € 7,805.00 | R74: € 7,805.00 | S74: € 10,051.00 | T74: € 12,751.00 | U74: € 13,071.75 | V74: € 13,071.75 | W74: € 36,088.23 | X74: € 36,088.23 | Y74: € 15,256.00 | Z74: € 15,256.00 | AA74: € 25,342.12 | AB74: 25342.12 | AC74: =+E74+G74+I74+K74+M74+O74+Q74+S74+U74+W74+Y74+AA74 -> € 159,496.03 | AD74: € 162,196.03
C75: Group Total | E75: =SUM(E74) -> € 7,329.00 | F75: € 7,329.00 | G75: € 17,057.90 | H75: € 17,057.90 | I75: € 8,283.00 | J75: € 8,283.00 | K75: € 16,357.03 | L75: € 16,357.03 | M75: € 410.00 | N75: € 410.00 | O75: € 2,445.00 | P75: € 2,445.00 | Q75: € 7,805.00 | R75: € 7,805.00 | S75: € 10,051.00 | T75: € 12,751.00 | U75: € 13,071.75 | V75: € 13,071.75 | W75: € 36,088.23 | X75: € 36,088.23 | Y75: € 15,256.00 | Z75: € 15,256.00 | AA75: € 25,342.12 | AB75: € 25,342.12 | AC75: € 159,496.03 | AD75: € 162,196.03
C76: Other Furniture & Parts | D76: Furniture Foam (9403) | E76: € 448.64 | F76: € 448.64 | G76: € 1,498.45 | H76: € 1,498.45 | I76: € 577.07 | J76: € 577.07 | K76: € 818.50 | L76: € 818.50 | M76: € 442.42 | N76: € 442.42 | O76: € 310.00 | P76: € 310.00 | Q76: € 0.00 | R76: € 0.00 | S76: € 412.18 | T76: € 412.18 | U76: € 1,233.80 | V76: € 1,233.80 | W76: € 1,279.46 | X76: € 1,279.46 | Y76: € 1,586.70 | Z76: € 1,586.70 | AA76: € 413.18 | AB76: 413.18 | AC76: € 9,020.40 | AD76: € 9,020.40
D77: Metal Furniture (9403.20) | E77: € 0.00 | F77: € 0.00 | G77: € 0.00 | H77: € 0.00 | I77: € 0.00 | J77: € 0.00 | K77: € 0.00 | L77: € 0.00 | M77: € 0.00 | N77: € 0.00 | O77: € 0.00 | P77: € 0.00 | Q77: € 0.00 | R77: € 0.00 | S77: € 0.00 | T77: € 0.00 | U77: € 0.00 | V77: € 0.00 | W77: € 0.00 | X77: € 0.00 | Y77: € 0.00 | Z77: € 0.00 | AA77: € 0.00 | AB77: 0 | AC77: € 0.00 | AD77: € 0.00
C78: Group Total | E78: =SUM(E76:E77) -> € 448.64 | F78: € 448.64 | G78: € 1,498.45 | H78: € 1,498.45 | I78: € 577.07 | J78: € 577.07 | K78: € 818.50 | L78: € 818.50 | M78: € 442.42 | N78: € 442.42 | O78: € 310.00 | P78: € 310.00 | Q78: € 0.00 | R78: € 0.00 | S78: € 412.18 | T78: € 412.18 | U78: € 1,233.80 | V78: € 1,233.80 | W78: € 1,279.46 | X78: € 1,279.46 | Y78: € 1,586.70 | Z78: € 1,586.70 | AA78: € 413.18 | AB78: =SUM(AB76:AB77) -> € 413.18 | AC78: € 9,020.40 | AD78: € 9,020.40
C79: Articles of Bedding and Similar Furnishing | D79: Mattresses (9404.21) | E79: € 4,372.00 | F79: € 4,372.00 | G79: € 6,454.00 | H79: € 6,454.00 | I79: € 3,928.00 | J79: € 3,928.00 | K79: € 7,028.00 | L79: € 7,288.00 | M79: € 7,983.00 | N79: € 10,103.00 | O79: € 11,092.00 | P79: € 12,433.40 | Q79: € 6,848.00 | R79: € 6,848.00 | S79: € 4,951.00 | T79: € 4,951.00 | U79: € 2,612.00 | V79: € 2,612.00 | W79: € 5,262.00 | X79: € 5,262.00 | Y79: € 14,979.00 | Z79: € 14,979.00 | AA79: € 6,733.00 | AB79: € 6,733.00 | AC79: € 82,242.00 | AD79: € 85,963.40
D80: Cushions, Pouffes and Pillows (9404.90) | E80: € 150.00 | F80: € 150.00 | G80: € 430.00 | H80: € 430.00 | I80: € 230.00 | J80: € 230.00 | K80: € 485.00 | L80: € 485.00 | M80: € 0.00 | N80: € 0.00 | O80: € 917.00 | P80: € 917.00 | Q80: € 182.00 | R80: € 182.00 | S80: € 60.00 | T80: € 60.00 | U80: € 0.00 | V80: € 0.00 | W80: € 920.00 | X80: € 920.00 | Y80: € 160.00 | Z80: € 160.00 | AA80: € 270.00 | AB80: € 270.00 | AC80: € 3,804.00 | AD80: € 3,804.00
C81: Group Total | E81: =SUM(E79:E80) -> € 4,522.00 | F81: € 4,522.00 | G81: € 6,884.00 | H81: € 6,884.00 | I81: € 4,158.00 | J81: € 4,158.00 | K81: € 7,513.00 | L81: € 7,773.00 | M81: € 7,983.00 | N81: € 10,103.00 | O81: € 12,009.00 | P81: € 13,350.40 | Q81: € 7,030.00 | R81: € 7,030.00 | S81: € 5,011.00 | T81: € 5,011.00 | U81: € 2,612.00 | V81: € 2,612.00 | W81: € 6,182.00 | X81: € 6,182.00 | Y81: € 15,139.00 | Z81: € 15,139.00 | AA81: € 7,003.00 | AB81: € 7,003.00 | AC81: € 86,046.00 | AD81: € 89,767.40
B82: Section Total | E82: =E75+E78+E81 -> € 12,299.64 | F82: € 12,299.64 | G82: € 25,440.35 | H82: € 25,440.35 | I82: € 13,018.07 | J82: € 13,018.07 | K82: € 24,688.53 | L82: € 24,948.53 | M82: € 8,835.42 | N82: € 10,955.42 | O82: € 14,764.00 | P82: € 16,105.40 | Q82: € 14,835.00 | R82: € 14,835.00 | S82: € 15,474.18 | T82: € 18,174.18 | U82: € 16,917.55 | V82: € 16,917.55 | W82: € 43,549.69 | X82: € 43,549.69 | Y82: € 31,981.70 | Z82: € 31,981.70 | AA82: € 32,758.30 | AB82: € 32,758.30 | AC82: € 254,562.43 | AD82: € 260,983.83
B83: LIVE ANIMALS / ANIMAL PRODUCTS | C83: Fish | D83: Fresh Fish (0302) | E83: € 37,866.00 | F83: € 37,866.00 | G83: € 68,472.00 | H83: € 68,472.00 | I83: € 72,370.00 | J83: € 72,829.00 | K83: € 64,419.00 | L83: € 64,419.00 | M83: € 49,585.68 | N83: € 49,585.68 | O83: € 77,102.00 | P83: € 77,102.00 | Q83: € 50,865.00 | R83: € 50,865.00 | S83: € 40,058.00 | T83: € 40,058.00 | U83: € 62,342.00 | V83: € 62,342.00 | W83: € 79,502.00 | X83: € 79,502.00 | Y83: € 71,096.00 | Z83: € 71,096.00 | AA83: € 58,331.00 | AB83: 58331 | AC83: € 732,008.68 | AD83: € 732,467.68
C84: Group Total | E84: =SUM(E83) -> € 37,866.00 | F84: € 37,866.00 | G84: € 68,472.00 | H84: € 68,472.00 | I84: € 72,370.00 | J84: € 72,829.00 | K84: € 64,419.00 | L84: € 64,419.00 | M84: € 49,585.68 | N84: € 49,585.68 | O84: € 77,102.00 | P84: € 77,102.00 | Q84: € 50,865.00 | R84: € 50,865.00 | S84: € 40,058.00 | T84: € 40,058.00 | U84: € 62,342.00 | V84: € 62,342.00 | W84: € 79,502.00 | X84: € 79,502.00 | Y84: € 71,096.00 | Z84: € 71,096.00 | AA84: € 58,331.00 | AB84: =SUM(AB83) -> € 58,331.00 | AC84: € 732,008.68 | AD84: € 732,467.68
B85: Section Total | E85: =SUM(E84) -> € 37,866.00 | F85: € 37,866.00 | G85: € 68,472.00 | H85: € 68,472.00 | I85: € 72,370.00 | J85: € 72,829.00 | K85: € 64,419.00 | L85: € 64,419.00 | M85: € 49,585.68 | N85: € 49,585.68 | O85: € 77,102.00 | P85: € 77,102.00 | Q85: € 50,865.00 | R85: € 50,865.00 | S85: € 40,058.00 | T85: € 40,058.00 | U85: € 62,342.00 | V85: € 62,342.00 | W85: € 79,502.00 | X85: € 79,502.00 | Y85: € 71,096.00 | Z85: € 71,096.00 | AA85: € 58,331.00 | AB85: € 58,331.00 | AC85: € 732,008.68 | AD85: € 732,467.68
B86: MISCALLENOUS MANUFACTURED ARTICLES | C86: Miscallenous Manufactured Articles | D86: Brooms, Brushes etc. (9603.10) | E86: € 869.50 | F86: € 869.50 | G86: € 14,679.00 | H86: € 14,790.00 | I86: € 17,878.60 | J86: € 17,878.60 | K86: € 2,725.00 | L86: € 2,725.00 | M86: € 0.00 | N86: € 0.00 | O86: € 3,300.00 | P86: € 3,360.00 | Q86: € 540.00 | R86: € 540.00 | S86: € 1,218.60 | T86: € 1,218.60 | U86: € 1,355.50 | V86: € 1,355.50 | W86: € 1,269.00 | X86: € 1,269.00 | Y86: € 804.00 | Z86: € 804.00 | AA86: € 1,665.60 | AB86: 1665.6 | AC86: € 46,304.80 | AD86: € 46,475.80
C87: Group Total | E87: =SUM(E86) -> € 869.50 | F87: € 869.50 | G87: € 14,679.00 | H87: € 14,790.00 | I87: € 17,878.60 | J87: € 17,878.60 | K87: € 2,725.00 | L87: € 2,725.00 | M87: € 0.00 | N87: € 0.00 | O87: € 3,300.00 | P87: € 3,360.00 | Q87: € 540.00 | R87: € 540.00 | S87: € 1,218.60 | T87: € 1,218.60 | U87: € 1,355.50 | V87: € 1,355.50 | W87: € 1,269.00 | X87: € 1,269.00 | Y87: € 804.00 | Z87: € 804.00 | AA87: € 1,665.60 | AB87: € 1,665.60 | AC87: € 46,304.80 | AD87: € 46,475.80
C88: Prefabricated Buildings | D88: Wooden Garage (9406.00.20) | E88: € 0.00 | F88: € 0.00 | G88: € 0.00 | H88: € 0.00 | I88: € 0.00 | J88: € 0.00 | K88: € 0.00 | L88: € 0.00 | M88: € 0.00 | N88: € 0.00 | O88: € 0.00 | P88: € 0.00 | Q88: € 0.00 | R88: € 0.00 | S88: € 0.00 | T88: € 0.00 | U88: € 0.00 | V88: € 0.00 | W88: € 0.00 | X88: € 0.00 | Y88: € 0.00 | Z88: € 0.00 | AA88: € 0.00 | AB88: € 0.00 | AC88: € 0.00 | AD88: € 0.00
C89: Group Total | E89: =SUM(E88) -> € 0.00 | F89: € 0.00 | G89: € 0.00 | H89: € 0.00 | I89: € 0.00 | J89: € 0.00 | K89: € 0.00 | L89: € 0.00 | M89: € 0.00 | N89: € 0.00 | O89: € 0.00 | P89: € 0.00 | Q89: € 0.00 | R89: € 0.00 | S89: € 0.00 | T89: € 0.00 | U89: € 0.00 | V89: € 0.00 | W89: € 0.00 | X89: € 0.00 | Y89: € 0.00 | Z89: € 0.00 | AA89: € 0.00 | AB89: € 0.00 | AC89: € 0.00 | AD89: € 0.00
B90: Section Total | E90: =E87+E89 -> € 869.50 | F90: € 869.50 | G90: € 14,679.00 | H90: € 14,790.00 | I90: € 17,878.60 | J90: € 17,878.60 | K90: € 2,725.00 | L90: € 2,725.00 | M90: € 0.00 | N90: € 0.00 | O90: € 3,300.00 | P90: € 3,360.00 | Q90: € 540.00 | R90: € 540.00 | S90: € 1,218.60 | T90: € 1,218.60 | U90: € 1,355.50 | V90: € 1,355.50 | W90: € 1,269.00 | X90: € 1,269.00 | Y90: € 804.00 | Z90: € 804.00 | AA90: € 1,665.60 | AB90: € 1,665.60 | AC90: € 46,304.80 | AD90: € 46,475.80
B91: PAPER AND PAPERBOARD | C91: Waste and Scrap of Paper and Paperboard | D91: Waste and Scrap of Paper and Paperboard (4707) | E91: € 3,380.00 | F91: € 5,200.00 | G91: € 4,848.00 | H91: € 6,200.00 | I91: € 2,350.00 | J91: € 6,400.00 | K91: € 4,697.50 | L91: € 7,120.00 | M91: € 3,892.00 | N91: € 7,183.27 | O91: € 4,904.70 | P91: € 5,714.79 | Q91: € 6,285.95 | R91: € 7,060.00 | S91: € 5,287.00 | T91: € 6,265.00 | U91: € 3,387.00 | V91: € 4,380.00 | W91: € 9,290.00 | X91: € 10,395.00 | Y91: € 2,828.55 | Z91: € 4,775.00 | AA91: € 4,549.60 | AB91: € 4,968.00 | AC91: € 55,700.30 | AD91: € 75,661.06
C92: Group Total | E92: =SUM(E91) -> € 3,380.00 | F92: € 5,200.00 | G92: € 4,848.00 | H92: € 6,200.00 | I92: € 2,350.00 | J92: € 6,400.00 | K92: € 4,697.50 | L92: € 7,120.00 | M92: € 3,892.00 | N92: € 7,183.27 | O92: € 4,904.70 | P92: € 5,714.79 | Q92: € 6,285.95 | R92: € 7,060.00 | S92: € 5,287.00 | T92: € 6,265.00 | U92: € 3,387.00 | V92: € 4,380.00 | W92: € 9,290.00 | X92: € 10,395.00 | Y92: € 2,828.55 | Z92: € 4,775.00 | AA92: € 4,549.60 | AB92: =SUM(AB91) -> € 4,968.00 | AC92: € 55,700.30 | AD92: € 75,661.06
C93: Articles of Paper and Paperboard | D93: Cartons, boxes and cases, of corrugated paper or paperboard (4819.10) | E93: € 0.00 | F93: € 0.00 | G93: € 0.00 | H93: € 0.00 | I93: € 0.00 | J93: € 0.00 | K93: € 0.00 | L93: € 0.00 | M93: € 0.00 | N93: € 0.00 | O93: € 0.00 | P93: € 0.00 | Q93: € 0.00 | R93: € 0.00 | S93: € 0.00 | T93: € 0.00 | U93: € 0.00 | V93: € 0.00 | W93: € 0.00 | X93: € 0.00 | Y93: € 0.00 | Z93: € 0.00 | AA93: € 0.00 | AB93: 0 | AC93: € 0.00 | AD93: € 0.00
C94: Group Total | E94: =SUM(E93) -> € 0.00 | F94: € 0.00 | G94: € 0.00 | H94: € 0.00 | I94: € 0.00 | J94: € 0.00 | K94: € 0.00 | L94: € 0.00 | M94: € 0.00 | N94: € 0.00 | O94: € 0.00 | P94: € 0.00 | Q94: € 0.00 | R94: € 0.00 | S94: € 0.00 | T94: € 0.00 | U94: € 0.00 | V94: € 0.00 | W94: € 0.00 | X94: € 0.00 | Y94: € 0.00 | Z94: € 0.00 | AA94: € 0.00 | AB94: € 0.00 | AC94: € 0.00 | AD94: € 0.00
C95: Printed Books, Newspapers, Pictures and Other Products of the Printing Industry | D95: Children's picture, drawing or colouring books | E95: € 0.00 | F95: € 0.00 | G95: € 0.00 | H95: € 0.00 | I95: € 0.00 | J95: € 0.00 | K95: € 0.00 | L95: € 0.00 | M95: € 0.00 | N95: € 0.00 | O95: € 0.00 | P95: € 0.00 | Q95: € 0.00 | R95: € 0.00 | S95: € 0.00 | T95: € 0.00 | U95: € 0.00 | V95: € 0.00 | W95: € 0.00 | X95: € 0.00 | Y95: € 0.00 | Z95: € 0.00 | AA95: € 0.00 | AB95: 0 | AC95: € 0.00 | AD95: € 0.00
C96: Group Total | E96: =SUM(E95) -> € 0.00 | F96: € 0.00 | G96: € 0.00 | H96: € 0.00 | I96: € 0.00 | J96: € 0.00 | K96: € 0.00 | L96: € 0.00 | M96: € 0.00 | N96: € 0.00 | O96: € 0.00 | P96: € 0.00 | Q96: € 0.00 | R96: € 0.00 | S96: € 0.00 | T96: € 0.00 | U96: € 0.00 | V96: € 0.00 | W96: € 0.00 | X96: € 0.00 | Y96: € 0.00 | Z96: € 0.00 | AA96: € 0.00 | AB96: € 0.00 | AC96: € 0.00 | AD96: € 0.00
B97: Section Total | E97: =E92+E94+E96 -> € 3,380.00 | F97: € 5,200.00 | G97: € 4,848.00 | H97: € 6,200.00 | I97: € 2,350.00 | J97: € 6,400.00 | K97: € 4,697.50 | L97: € 7,120.00 | M97: € 3,892.00 | N97: € 7,183.27 | O97: € 4,904.70 | P97: € 5,714.79 | Q97: € 6,285.95 | R97: € 7,060.00 | S97: € 5,287.00 | T97: € 6,265.00 | U97: € 3,387.00 | V97: € 4,380.00 | W97: € 9,290.00 | X97: € 10,395.00 | Y97: € 2,828.55 | Z97: € 4,775.00 | AA97: € 4,549.60 | AB97: € 4,968.00 | AC97: € 55,700.30 | AD97: € 75,661.06
B98: PLASTIC PRODUCTS | C98: Plastics and Articles | D98: Plastic Bags (3923.21) | E98: € 49,779.41 | F98: € 49,779.41 | G98: € 56,428.88 | H98: € 56,428.88 | I98: € 64,232.78 | J98: € 64,232.78 | K98: € 69,148.83 | L98: € 69,148.83 | M98: € 41,716.14 | N98: € 41,716.14 | O98: € 63,145.91 | P98: € 63,145.91 | Q98: € 50,480.49 | R98: € 50,480.49 | S98: € 38,183.35 | T98: € 38,183.35 | U98: € 33,019.04 | V98: € 33,019.04 | W98: € 47,850.58 | X98: € 47,850.58 | Y98: € 37,839.68 | Z98: € 37,839.68 | AA98: € 36,744.56 | AB98: 36744.56 | AC98: € 588,569.65 | AD98: € 588,569.65
D99: Plastic Bag Handles (3923.90) | E99: € 571.00 | F99: € 571.00 | G99: € 0.00 | I99: € 0.00 | J99: € 0.00 | K99: € 0.00 | L99: € 0.00 | M99: € 0.00 | N99: € 0.00 | O99: € 0.00 | P99: € 279.00 | Q99: € 0.00 | R99: € 0.00 | S99: € 0.00 | T99: € 0.00 | U99: € 0.00 | V99: € 0.00 | W99: € 0.00 | X99: € 0.00 | Y99: € 0.00 | Z99: € 0.00 | AA99: € 0.00 | AB99: € 0.00 | AC99: € 571.00 | AD99: € 850.00
D100: Boxes, cases, crates and similar articles (3923.10) | E100: € 1,170.00 | F100: € 1,170.00 | G100: € 13,705.00 | H100: € 13,705.00 | I100: € 130.00 | J100: € 650.00 | K100: € 65,582.12 | L100: € 65,582.12 | M100: € 0.00 | N100: € 37,608.53 | O100: € 279.00 | P100: € 74,494.65 | Q100: € 0.00 | R100: € 64,344.18 | S100: € 0.00 | T100: € 61,354.34 | U100: € 0.00 | V100: € 72,560.50 | W100: € 0.00 | X100: € 39,055.45 | Y100: € 0.00 | Z100: € 43,031.61 | AA100: € 0.00 | AB100: 51402.64 | AC100: € 80,866.12 | AD100: € 524,959.02
D101: Plastic Bottles, Caps and Containers (3923) | E101: € 34,500.49 | F101: € 34,500.49 | G101: € 45,588.49 | H101: € 45,588.49 | I101: € 59,339.69 | J101: € 59,339.69 | K101: € 61,252.84 | L101: € 61,252.84 | M101: € 37,608.53 | N101: € 0.00 | O101: € 74,494.65 | P101: € 0.00 | Q101: € 64,344.18 | R101: € 0.00 | S101: € 58,331.84 | T101: € 0.00 | U101: € 72,560.50 | V101: € 0.00 | W101: € 39,055.45 | X101: € 0.00 | Y101: € 43,031.61 | Z101: € 0.00 | AA101: € 51,402.64 | AB101: € 0.00 | AC101: € 641,510.91 | AD101: € 200,681.51
D102: Plastic Insulation Materials (3920) | E102: € 0.00 | F102: € 0.00 | G102: € 0.00 | H102: € 0.00 | I102: € 0.00 | J102: € 0.00 | K102: € 0.00 | L102: € 0.00 | M102: € 0.00 | N102: € 0.00 | O102: € 0.00 | P102: € 3,300.00 | Q102: € 0.00 | R102: € 0.00 | S102: € 0.00 | T102: € 0.00 | U102: € 0.00 | V102: € 550.00 | W102: € 0.00 | X102: € 0.00 | Y102: € 0.00 | Z102: € 12,850.00 | AA102: € 0.00 | AB102: 4540 | AC102: € 0.00 | AD102: € 21,240.00
D103: PVC doors, windows, shutters and accessories (3925) | E103: € 225.00 | F103: € 225.00 | G103: € 5,016.00 | H103: € 5,016.00 | I103: € 2,920.00 | J103: € 2,920.00 | K103: € 0.00 | L103: € 0.00 | M103: € 0.00 | N103: € 0.00 | O103: € 3,300.00 | P103: € 270.00 | Q103: € 0.00 | R103: € 0.00 | S103: € 0.00 | T103: € 800.00 | U103: € 550.00 | V103: € 620.00 | W103: € 310.00 | X103: € 310.00 | Y103: € 12,850.00 | Z103: € 0.00 | AA103: € 4,540.00 | AB103: € 945.00 | AC103: € 29,711.00 | AD103: € 11,106.00
D104: Water tanks (3925) | E104: € 200.00 | F104: € 200.00 | G104: € 0.00 | H104: € 0.00 | I104: € 0.00 | J104: € 0.00 | K104: € 800.00 | L104: € 800.00 | M104: € 0.00 | N104: € 0.00 | O104: € 270.00 | P104: € 0.00 | Q104: € 0.00 | R104: € 0.00 | S104: € 800.00 | T104: € 0.00 | U104: € 620.00 | V104: € 0.00 | W104: € 0.00 | X104: € 0.00 | Y104: € 0.00 | Z104: € 0.00 | AA104: € 945.00 | AB104: € 0.00 | AC104: € 3,635.00 | AD104: € 1,000.00
D105: Waste, parings and scrap, of plastics (3915) | E105: € 0.00 | F105: € 0.00 | G105: € 0.00 | H105: € 0.00 | I105: € 1,020.00 | J105: € 1,200.00 | K105: € 0.00 | L105: € 0.00 | M105: € 0.00 | N105: € 0.00 | O105: € 312.00 | P105: € 312.00 | Q105: € 0.00 | R105: € 0.00 | S105: € 0.00 | T105: € 0.00 | U105: € 0.00 | V105: € 0.00 | W105: € 0.00 | X105: € 0.00 | Y105: € 0.00 | Z105: € 0.00 | AA105: € 0.00 | AB105: € 0.00 | AC105: € 1,332.00 | AD105: € 1,512.00
C106: Group Total | E106: =SUM(E98:E105) -> € 86,445.90 | F106: € 86,445.90 | G106: € 120,738.37 | H106: € 120,738.37 | I106: € 127,642.47 | J106: € 128,342.47 | K106: € 196,783.79 | L106: € 196,783.79 | M106: € 79,324.67 | N106: € 79,324.67 | O106: € 141,801.56 | P106: € 141,801.56 | Q106: € 114,824.67 | R106: € 114,824.67 | S106: € 97,315.19 | T106: € 100,337.69 | U106: € 106,749.54 | V106: € 106,749.54 | W106: € 87,216.03 | X106: € 87,216.03 | Y106: € 93,721.29 | Z106: € 93,721.29 | AA106: € 93,632.20 | AB106: € 93,632.20 | AC106: € 1,346,195.68 | AD106: € 1,349,918.18
B107: Section Total | E107: =E106 -> € 86,445.90 | F107: € 86,445.90 | G107: € 120,738.37 | H107: € 120,738.37 | I107: € 127,642.47 | J107: € 128,342.47 | K107: € 196,783.79 | L107: € 196,783.79 | M107: € 79,324.67 | N107: € 79,324.67 | O107: € 141,801.56 | P107: € 141,801.56 | Q107: € 114,824.67 | R107: € 114,824.67 | S107: € 97,315.19 | T107: € 100,337.69 | U107: € 106,749.54 | V107: € 106,749.54 | W107: € 87,216.03 | X107: € 87,216.03 | Y107: € 93,721.29 | Z107: € 93,721.29 | AA107: € 93,632.20 | AB107: € 93,632.20 | AC107: € 1,346,195.68 | AD107: € 1,349,918.18
B108: PREPARED FOODSTUFFS | C108: Beverages, Spirits and Vinegar | D108: Water (2201) | E108: € 0.00 | F108: € 0.00 | G108: € 0.00 | H108: € 0.00 | I108: € 0.00 | J108: € 0.00 | K108: € 0.00 | L108: € 0.00 | M108: € 0.00 | N108: € 0.00 | O108: € 0.00 | P108: € 0.00 | Q108: € 0.00 | R108: € 0.00 | S108: € 0.00 | T108: € 0.00 | U108: € 0.00 | V108: € 0.00 | W108: € 0.00 | X108: € 0.00 | Y108: € 0.00 | Z108: € 0.00 | AA108: € 0.00 | AB108: 0 | AC108: € 0.00 | AD108: € 0.00
C109: Group Total | E109: =SUM(E108) -> € 0.00 | F109: € 0.00 | G109: € 0.00 | H109: € 0.00 | I109: € 0.00 | J109: € 0.00 | K109: € 0.00 | L109: € 0.00 | M109: € 0.00 | N109: € 0.00 | O109: € 0.00 | P109: € 0.00 | Q109: € 0.00 | R109: € 0.00 | S109: € 0.00 | T109: € 0.00 | U109: € 0.00 | V109: € 0.00 | W109: € 0.00 | X109: € 0.00 | Y109: € 0.00 | Z109: € 0.00 | AA109: € 0.00 | AB109: =SUM(AB108) -> € 0.00 | AC109: € 0.00 | AD109: € 0.00
C110: Pastrycook's Products | D110: Bread, pastry, cakes, biscuits and other bakers' wares (1905) | E110: € 0.00 | F110: € 0.00 | G110: € 0.00 | H110: € 0.00 | I110: € 0.00 | J110: € 0.00 | K110: € 0.00 | L110: € 0.00 | M110: € 0.00 | N110: € 0.00 | O110: € 0.00 | P110: € 0.00 | Q110: € 0.00 | R110: € 0.00 | S110: € 0.00 | T110: € 0.00 | U110: € 0.00 | V110: € 0.00 | W110: € 0.00 | X110: € 0.00 | Y110: € 0.00 | Z110: € 0.00 | AA110: € 0.00 | AB110: 0 | AC110: € 0.00 | AD110: € 0.00
C111: Group Total | E111: =SUM(E110) -> € 0.00 | F111: € 0.00 | G111: € 0.00 | H111: € 0.00 | I111: € 0.00 | J111: € 0.00 | K111: € 0.00 | L111: € 0.00 | M111: € 0.00 | N111: € 0.00 | O111: € 0.00 | P111: € 0.00 | Q111: € 0.00 | R111: € 0.00 | S111: € 0.00 | T111: € 0.00 | U111: € 0.00 | V111: € 0.00 | W111: € 0.00 | X111: € 0.00 | Y111: € 0.00 | Z111: € 0.00 | AA111: € 0.00 | AB111: € 0.00 | AC111: € 0.00 | AD111: € 0.00
C112: Residues and Waste from Food Industries | D112: Bran (2302) | E112: € 0.00 | F112: € 0.00 | G112: € 0.00 | H112: € 0.00 | I112: € 302.00 | J112: € 1,400.00 | K112: € 0.00 | L112: € 0.00 | M112: € 2,516.00 | N112: € 3,200.00 | O112: € 0.00 | P112: € 0.00 | Q112: € 9,672.00 | R112: € 10,000.00 | S112: € 2,200.00 | T112: € 2,200.00 | U112: € 2,200.00 | V112: € 2,200.00 | W112: € 0.00 | X112: € 0.00 | Y112: € 3,036.00 | Z112: € 3,200.00 | AA112: € 0.00 | AB112: 0 | AC112: € 19,926.00 | AD112: € 22,200.00
C113: Group Total | E113: =SUM(E112) -> € 0.00 | F113: € 0.00 | G113: € 0.00 | H113: € 0.00 | I113: € 302.00 | J113: € 1,400.00 | K113: € 0.00 | L113: € 0.00 | M113: € 2,516.00 | N113: € 3,200.00 | O113: € 0.00 | P113: € 0.00 | Q113: € 9,672.00 | R113: € 10,000.00 | S113: € 2,200.00 | T113: € 2,200.00 | U113: € 2,200.00 | V113: € 2,200.00 | W113: € 0.00 | X113: € 0.00 | Y113: € 3,036.00 | Z113: € 3,200.00 | AA113: € 0.00 | AB113: € 0.00 | AC113: € 19,926.00 | AD113: € 22,200.00
C114: Jams, fruit jellies, marmalades, fruit or nut purée and fruit or nut pastes, obtained by cooking, whether or not containing added sugar or other sweetening matter | D114: Carob Syrup (2007.10) | E114: € 0.00 | F114: € 0.00 | G114: € 0.00 | H114: € 0.00 | I114: € 0.00 | J114: € 0.00 | K114: € 0.00 | L114: € 0.00 | M114: € 0.00 | N114: € 0.00 | O114: € 0.00 | P114: € 0.00 | Q114: € 0.00 | R114: € 0.00 | S114: € 0.00 | T114: € 0.00 | U114: € 0.00 | V114: € 0.00 | W114: € 0.00 | X114: € 0.00 | Y114: € 0.00 | Z114: € 0.00 | AA114: € 0.00 | AB114: € 0.00 | AC114: € 0.00 | AD114: € 0.00
C115: Group Total | E115: =SUM(E114) -> € 0.00 | F115: € 0.00 | G115: € 0.00 | H115: € 0.00 | I115: € 0.00 | J115: € 0.00 | K115: € 0.00 | L115: € 0.00 | M115: € 0.00 | N115: € 0.00 | O115: € 0.00 | P115: € 0.00 | Q115: € 0.00 | R115: € 0.00 | S115: € 0.00 | T115: € 0.00 | U115: € 0.00 | V115: € 0.00 | W115: € 0.00 | X115: € 0.00 | Y115: € 0.00 | Z115: € 0.00 | AA115: € 0.00 | AB115: € 0.00 | AC115: € 0.00 | AD115: € 0.00
B116: Section Total | E116: =E109+E111+E113+E115 -> € 0.00 | F116: € 0.00 | G116: € 0.00 | H116: € 0.00 | I116: € 302.00 | J116: € 1,400.00 | K116: € 0.00 | L116: € 0.00 | M116: € 2,516.00 | N116: € 3,200.00 | O116: € 0.00 | P116: € 0.00 | Q116: € 9,672.00 | R116: € 10,000.00 | S116: € 2,200.00 | T116: € 2,200.00 | U116: € 2,200.00 | V116: € 2,200.00 | W116: € 0.00 | X116: € 0.00 | Y116: € 3,036.00 | Z116: € 3,200.00 | AA116: € 0.00 | AB116: € 0.00 | AC116: € 19,926.00 | AD116: € 22,200.00
B117: SADDLERY AND HARNESS | C117: Saddlery and Harness | D117: Saddlery and Harness of any Material (4201) | E117: € 0.00 | F117: € 0.00 | G117: € 0.00 | H117: € 0.00 | I117: € 0.00 | J117: € 0.00 | K117: € 0.00 | L117: € 0.00 | M117: € 0.00 | N117: € 0.00 | O117: € 0.00 | P117: € 0.00 | Q117: € 0.00 | R117: € 0.00 | S117: € 0.00 | T117: € 0.00 | U117: € 0.00 | V117: € 0.00 | W117: € 0.00 | X117: € 0.00 | Y117: € 0.00 | Z117: € 0.00 | AA117: € 0.00 | AB117: € 0.00 | AC117: € 0.00 | AD117: € 0.00
C118: Group Total | E118: =SUM(E117) -> € 0.00 | F118: € 0.00 | G118: € 0.00 | H118: € 0.00 | I118: € 0.00 | J118: € 0.00 | K118: € 0.00 | L118: € 0.00 | M118: € 0.00 | N118: € 0.00 | O118: € 0.00 | P118: € 0.00 | Q118: € 0.00 | R118: € 0.00 | S118: € 0.00 | T118: € 0.00 | U118: € 0.00 | V118: € 0.00 | W118: € 0.00 | X118: € 0.00 | Y118: € 0.00 | Z118: € 0.00 | AA118: € 0.00 | AB118: =SUM(AB117) -> € 0.00 | AC118: € 0.00 | AD118: € 0.00
B119: Section Total | E119: =E118 -> € 0.00 | F119: € 0.00 | G119: € 0.00 | H119: € 0.00 | I119: € 0.00 | J119: € 0.00 | K119: € 0.00 | L119: € 0.00 | M119: € 0.00 | N119: € 0.00 | O119: € 0.00 | P119: € 0.00 | Q119: € 0.00 | R119: € 0.00 | S119: € 0.00 | T119: € 0.00 | U119: € 0.00 | V119: € 0.00 | W119: € 0.00 | X119: € 0.00 | Y119: € 0.00 | Z119: € 0.00 | AA119: € 0.00 | AB119: € 0.00 | AC119: € 0.00 | AD119: € 0.00
B120: TEXTILE AND TEXTILE ARTICLES | C120: Articles of Apparel and Clothing Accessories | D120: Socks (6115) | E120: € 0.00 | F120: € 0.00 | G120: € 0.00 | H120: € 0.00 | I120: € 0.00 | J120: € 0.00 | K120: € 0.00 | L120: € 0.00 | M120: € 0.00 | N120: € 0.00 | O120: € 0.00 | P120: € 0.00 | Q120: € 0.00 | R120: € 0.00 | S120: € 0.00 | T120: € 0.00 | U120: € 0.00 | V120: € 0.00 | W120: € 0.00 | X120: € 0.00 | Y120: € 0.00 | Z120: € 0.00 | AA120: € 0.00 | AB120: 0 | AC120: € 0.00 | AD120: € 0.00
D121: Women's Dresses (6204.41) | E121: € 120,500.00 | F121: € 120,500.00 | G121: € 0.00 | H121: € 0.00 | I121: € 0.00 | J121: € 0.00 | K121: € 0.00 | L121: € 0.00 | M121: € 0.00 | N121: € 0.00 | O121: € 0.00 | P121: € 0.00 | Q121: € 0.00 | R121: € 0.00 | S121: € 0.00 | T121: € 0.00 | U121: € 0.00 | V121: € 0.00 | W121: € 0.00 | X121: € 0.00 | Y121: € 0.00 | Z121: € 0.00 | AA121: € 0.00 | AB121: € 0.00 | AC121: € 120,500.00 | AD121: € 120,500.00
D122: Men's Suits (6203.11) | E122: € 0.00 | F122: € 0.00 | G122: € 0.00 | H122: € 0.00 | I122: € 0.00 | J122: € 0.00 | K122: € 0.00 | L122: € 0.00 | M122: € 0.00 | N122: € 0.00 | O122: € 0.00 | P122: € 0.00 | Q122: € 0.00 | R122: € 0.00 | S122: € 0.00 | T122: € 0.00 | U122: € 0.00 | V122: € 0.00 | W122: € 0.00 | X122: € 0.00 | Y122: € 0.00 | Z122: € 0.00 | AA122: € 0.00 | AB122: 0 | AC122: € 0.00 | AD122: € 0.00
D123: Accessories (6217.10) | E123: € 0.00 | F123: € 0.00 | G123: € 0.00 | H123: € 0.00 | I123: € 0.00 | J123: € 0.00 | K123: € 0.00 | L123: € 0.00 | M123: € 0.00 | N123: € 0.00 | O123: € 0.00 | P123: € 0.00 | Q123: € 0.00 | R123: € 0.00 | S123: € 0.00 | T123: € 0.00 | U123: € 0.00 | V123: € 0.00 | W123: € 0.00 | X123: € 0.00 | Y123: € 0.00 | Z123: € 0.00 | AA123: € 0.00 | AB123: € 0.00 | AC123: € 0.00 | AD123: € 0.00
C124: Group Total | E124: =SUM(E120:E123) -> € 120,500.00 | F124: € 120,500.00 | G124: € 0.00 | H124: € 0.00 | I124: € 0.00 | J124: € 0.00 | K124: € 0.00 | L124: € 0.00 | M124: € 0.00 | N124: € 0.00 | O124: € 0.00 | P124: € 0.00 | Q124: € 0.00 | R124: € 0.00 | S124: € 0.00 | T124: € 0.00 | U124: € 0.00 | V124: € 0.00 | W124: € 0.00 | X124: € 0.00 | Y124: € 0.00 | Z124: € 0.00 | AA124: € 0.00 | AB124: =SUM(AB120:AB123) -> € 0.00 | AC124: € 120,500.00 | AD124: € 120,500.00
B125: Section Total | E125: =E124 -> € 120,500.00 | F125: € 120,500.00 | G125: € 0.00 | H125: € 0.00 | I125: € 0.00 | J125: € 0.00 | K125: € 0.00 | L125: € 0.00 | M125: € 0.00 | N125: € 0.00 | O125: € 0.00 | P125: € 0.00 | Q125: € 0.00 | R125: € 0.00 | S125: € 0.00 | T125: € 0.00 | U125: € 0.00 | V125: € 0.00 | W125: € 0.00 | X125: € 0.00 | Y125: € 0.00 | Z125: € 0.00 | AA125: € 0.00 | AB125: € 0.00 | AC125: € 120,500.00 | AD125: € 120,500.00
B126: VEGETABLE PRODUCTS | C126: Vegetables | D126: Artichoke (0709.90.80) | E126: € 0.00 | F126: € 0.00 | G126: € 0.00 | H126: € 0.00 | I126: € 0.00 | J126: € 0.00 | K126: € 0.00 | L126: € 0.00 | M126: € 0.00 | N126: € 0.00 | O126: € 0.00 | P126: € 0.00 | Q126: € 0.00 | R126: € 0.00 | S126: € 0.00 | T126: € 0.00 | U126: € 0.00 | V126: € 0.00 | W126: € 0.00 | X126: € 0.00 | Y126: € 0.00 | Z126: € 0.00 | AA126: € 400.00 | AB126: € 400.00 | AC126: € 400.00 | AD126: € 400.00
D127: Asparagus (0709.20) | E127: € 0.00 | F127: € 0.00 | G127: € 0.00 | H127: € 0.00 | I127: € 0.00 | J127: € 0.00 | K127: € 0.00 | L127: € 0.00 | M127: € 0.00 | N127: € 0.00 | O127: € 0.00 | P127: € 0.00 | Q127: € 0.00 | R127: € 0.00 | S127: € 0.00 | T127: € 0.00 | U127: € 0.00 | V127: € 0.00 | W127: € 1,128.00 | X127: € 2,250.00 | Y127: € 4,565.20 | Z127: € 4,575.00 | AA127: € 1,000.00 | AB127: € 1,000.00 | AC127: € 6,693.20 | AD127: € 7,825.00
D128: Aubergine (0709.30) | E128: € 0.00 | F128: € 0.00 | G128: € 0.00 | H128: € 0.00 | I128: € 0.00 | J128: € 0.00 | K128: € 0.00 | L128: € 0.00 | M128: € 0.00 | N128: € 0.00 | O128: € 0.00 | P128: € 0.00 | Q128: € 0.00 | R128: € 0.00 | S128: € 1,000.00 | T128: € 1,000.00 | U128: € 0.00 | V128: € 0.00 | W128: € 0.00 | X128: € 0.00 | Y128: € 0.00 | Z128: € 0.00 | AA128: € 200.00 | AB128: 200 | AC128: € 1,200.00 | AD128: € 1,200.00
D129: Beans (0708.20) | E129: € 0.00 | F129: € 0.00 | G129: € 0.00 | H129: € 0.00 | I129: € 0.00 | J129: € 0.00 | K129: € 0.00 | L129: € 0.00 | M129: € 0.00 | N129: € 0.00 | O129: € 1,850.00 | P129: € 1,850.00 | Q129: € 1,780.00 | R129: € 7,600.00 | S129: € 0.00 | T129: € 0.00 | U129: € 0.00 | V129: € 0.00 | W129: € 0.00 | X129: € 0.00 | Y129: € 0.00 | Z129: € 0.00 | AA129: € 0.00 | AB129: 0 | AC129: € 3,630.00 | AD129: € 9,450.00
D130: Black-eyed beans (0708.9000.90) | E130: € 0.00 | F130: € 0.00 | G130: € 0.00 | H130: € 0.00 | I130: € 0.00 | J130: € 0.00 | K130: € 0.00 | L130: € 0.00 | M130: € 0.00 | N130: € 0.00 | O130: € 0.00 | P130: € 0.00 | Q130: € 0.00 | R130: € 0.00 | S130: € 0.00 | T130: € 0.00 | U130: € 0.00 | V130: € 0.00 | W130: € 0.00 | X130: € 0.00 | Y130: € 0.00 | Z130: € 0.00 | AA130: € 0.00 | AB130: 0 | AC130: € 0.00 | AD130: € 0.00
D131: Cabbage (0704.90.10) | E131: € 0.00 | F131: € 0.00 | G131: € 0.00 | H131: € 0.00 | I131: € 680.00 | J131: € 1,000.00 | K131: € 0.00 | L131: € 0.00 | M131: € 0.00 | N131: € 0.00 | O131: € 0.00 | P131: € 0.00 | Q131: € 0.00 | R131: € 0.00 | S131: € 0.00 | T131: € 0.00 | U131: € 0.00 | V131: € 0.00 | W131: € 0.00 | X131: € 0.00 | Y131: € 250.00 | Z131: € 250.00 | AA131: € 600.00 | AB131: 600 | AC131: € 1,530.00 | AD131: € 1,850.00
D132: Carrot (0706.10.00.10) | E132: € 0.00 | F132: € 0.00 | G132: € 0.00 | H132: € 0.00 | I132: € 3,090.00 | J132: € 3,600.00 | K132: € 500.00 | L132: € 500.00 | M132: € 0.00 | N132: € 0.00 | O132: € 0.00 | P132: € 0.00 | Q132: € 0.00 | R132: € 0.00 | S132: € 0.00 | T132: € 0.00 | U132: € 4,000.00 | V132: € 4,000.00 | W132: € 0.00 | X132: € 0.00 | Y132: € 500.00 | Z132: € 500.00 | AA132: € 1,250.00 | AB132: € 1,250.00 | AC132: € 9,340.00 | AD132: € 9,850.00
D133: Courgette (0709.90.90.10) | E133: € 1,572.40 | F133: € 1,700.00 | G133: € 0.00 | H133: € 0.00 | I133: € 750.00 | J133: € 750.00 | K133: € 0.00 | L133: € 0.00 | M133: € 0.00 | N133: € 0.00 | O133: € 0.00 | P133: € 0.00 | Q133: € 0.00 | R133: € 0.00 | S133: € 0.00 | T133: € 0.00 | U133: € 0.00 | V133: € 0.00 | W133: € 0.00 | X133: € 0.00 | Y133: € 0.00 | Z133: € 0.00 | AA133: € 0.00 | AB133: € 0.00 | AC133: € 2,322.40 | AD133: € 2,450.00
D134: Cucumber (0707) | E134: € 333.00 | F134: € 1,200.00 | G134: € 0.00 | H134: € 0.00 | I134: € 1,250.00 | J134: € 3,500.00 | K134: € 0.00 | L134: € 0.00 | M134: € 0.00 | N134: € 0.00 | O134: € 0.00 | P134: € 0.00 | Q134: € 0.00 | R134: € 0.00 | S134: € 0.00 | T134: € 0.00 | U134: € 0.00 | V134: € 0.00 | W134: € 1,000.00 | X134: € 1,000.00 | Y134: € 0.00 | Z134: € 0.00 | AA134: € 250.00 | AB134: 250 | AC134: € 2,833.00 | AD134: € 5,950.00
D135: Kohlrabi (0704.90.90) | E135: € 0.00 | F135: € 0.00 | G135: € 0.00 | H135: € 0.00 | I135: € 0.00 | J135: € 0.00 | K135: € 0.00 | L135: € 0.00 | M135: € 0.00 | N135: € 0.00 | O135: € 0.00 | P135: € 0.00 | Q135: € 0.00 | R135: € 0.00 | S135: € 0.00 | T135: € 0.00 | U135: € 0.00 | V135: € 0.00 | W135: € 0.00 | X135: € 0.00 | Y135: € 0.00 | Z135: € 0.00 | AA135: € 0.00 | AB135: 0 | AC135: € 0.00 | AD135: € 0.00
D136: Kolakas (0706.90) | E136: € 0.00 | F136: € 0.00 | G136: € 0.00 | H136: € 0.00 | I136: € 0.00 | J136: € 0.00 | K136: € 0.00 | L136: € 0.00 | M136: € 0.00 | N136: € 0.00 | O136: € 0.00 | P136: € 0.00 | Q136: € 0.00 | R136: € 0.00 | S136: € 0.00 | T136: € 0.00 | U136: € 0.00 | V136: € 0.00 | W136: € 0.00 | X136: € 0.00 | Y136: € 0.00 | Z136: € 0.00 | AA136: € 0.00 | AB136: 0 | AC136: € 0.00 | AD136: € 0.00
D137: Leek (0703.90 | E137: € 0.00 | F137: € 0.00 | G137: € 0.00 | H137: € 0.00 | I137: € 0.00 | J137: € 0.00 | K137: € 0.00 | L137: € 0.00 | M137: € 0.00 | N137: € 0.00 | O137: € 0.00 | P137: € 0.00 | Q137: € 0.00 | R137: € 0.00 | S137: € 0.00 | T137: € 0.00 | U137: € 0.00 | V137: € 0.00 | W137: € 0.00 | X137: € 0.00 | Y137: € 0.00 | Z137: € 0.00 | AA137: € 0.00 | AB137: 0 | AC137: € 0.00 | AD137: € 0.00
D138: Lettuce (0705.11) | E138: € 0.00 | F138: € 0.00 | G138: € 257.00 | H138: € 2,000.00 | I138: € 0.00 | J138: € 0.00 | K138: € 0.00 | L138: € 0.00 | M138: € 0.00 | N138: € 0.00 | O138: € 0.00 | P138: € 0.00 | Q138: € 0.00 | R138: € 0.00 | S138: € 0.00 | T138: € 0.00 | U138: € 0.00 | V138: € 0.00 | W138: € 0.00 | X138: € 0.00 | Y138: € 0.00 | Z138: € 0.00 | AA138: € 0.00 | AB138: 0 | AC138: =+E138+G138+I138+K138+M138+O138+Q138+S138+U138+W138+Y138+AA138 -> € 257.00 | AD138: € 2,000.00
D139: Mushroom (0709.51) | E139: € 0.00 | F139: € 0.00 | G139: € 0.00 | H139: € 0.00 | I139: € 0.00 | J139: € 0.00 | K139: € 0.00 | L139: € 0.00 | M139: € 0.00 | N139: € 0.00 | O139: € 0.00 | P139: € 0.00 | Q139: € 0.00 | R139: € 0.00 | S139: € 0.00 | T139: € 0.00 | U139: € 0.00 | V139: € 0.00 | W139: € 0.00 | X139: € 0.00 | Y139: € 0.00 | Z139: € 0.00 | AA139: € 0.00 | AB139: 0 | AC139: € 0.00 | AD139: € 0.00
D140: Onion (0703) | E140: € 32,350.00 | F140: € 38,050.00 | G140: € 0.00 | H140: € 0.00 | I140: € 0.00 | J140: € 0.00 | K140: € 0.00 | L140: € 0.00 | M140: € 0.00 | N140: € 0.00 | O140: € 200.00 | P140: € 2,000.00 | Q140: € 0.00 | R140: € 0.00 | S140: € 0.00 | T140: € 0.00 | U140: € 8,900.00 | V140: € 8,900.00 | W140: € 0.00 | X140: € 0.00 | Y140: € 2,750.00 | Z140: € 2,750.00 | AA140: € 9,150.00 | AB140: 13250 | AC140: € 53,350.00 | AD140: € 64,950.00
D141: Olives (0709.90.31) | E141: € 0.00 | F141: € 0.00 | G141: € 0.00 | H141: € 0.00 | I141: € 1,000.00 | J141: € 1,000.00 | K141: € 0.00 | L141: € 0.00 | M141: € 0.00 | N141: € 0.00 | O141: € 0.00 | P141: € 0.00 | Q141: € 0.00 | R141: € 0.00 | S141: € 0.00 | T141: € 0.00 | U141: € 0.00 | V141: € 0.00 | W141: € 0.00 | X141: € 0.00 | Y141: € 0.00 | Z141: € 0.00 | AA141: € 0.00 | AB141: 0 | AC141: € 1,000.00 | AD141: € 1,000.00
D142: Green Pepper (07096099) | E142: € 4,200.00 | F142: € 4,200.00 | G142: € 0.00 | H142: € 0.00 | I142: € 0.00 | J142: € 0.00 | K142: € 0.00 | L142: € 0.00 | M142: € 0.00 | N142: € 0.00 | O142: € 0.00 | P142: € 0.00 | Q142: € 0.00 | R142: € 0.00 | S142: € 0.00 | T142: € 0.00 | U142: € 0.00 | V142: € 0.00 | W142: € 1,000.00 | X142: € 1,000.00 | Y142: € 0.00 | Z142: € 0.00 | AA142: € 0.00 | AB142: 0 | AC142: € 5,200.00 | AD142: € 5,200.00
D143: Sweet Pepper (07096010) | E143: € 279.30 | F143: € 700.00 | G143: € 0.00 | H143: € 0.00 | I143: € 0.00 | J143: € 0.00 | K143: € 0.00 | L143: € 0.00 | M143: € 0.00 | N143: € 0.00 | O143: € 0.00 | P143: € 0.00 | Q143: € 0.00 | R143: € 0.00 | S143: € 0.00 | T143: € 0.00 | U143: € 0.00 | V143: € 0.00 | W143: € 0.00 | X143: € 0.00 | Y143: € 0.00 | Z143: € 0.00 | AA143: € 0.00 | AB143: € 0.00 | AC143: € 279.30 | AD143: € 700.00
D144: Cayenne Pepper (07096099) | E144: € 1,000.00 | F144: € 1,000.00 | G144: € 0.00 | H144: € 0.00 | I144: € 0.00 | J144: € 0.00 | K144: € 0.00 | L144: € 0.00 | M144: € 0.00 | N144: € 0.00 | O144: € 0.00 | P144: € 0.00 | Q144: € 0.00 | R144: € 0.00 | S144: € 0.00 | T144: € 0.00 | U144: € 0.00 | V144: € 0.00 | W144: € 0.00 | X144: € 0.00 | Y144: € 0.00 | Z144: € 0.00 | AA144: € 0.00 | AB144: € 0.00 | AC144: € 1,000.00 | AD144: € 1,000.00
D145: Potato (0701) | E145: € 0.00 | F145: € 0.00 | G145: € 0.00 | H145: € 0.00 | I145: € 0.00 | J145: € 0.00 | K145: € 0.00 | L145: € 0.00 | M145: € 0.00 | N145: € 0.00 | O145: € 0.00 | P145: € 104,520.00 | Q145: € 0.00 | R145: € 0.00 | S145: € 17,280.00 | T145: € 17,280.00 | U145: € 0.00 | V145: € 0.00 | W145: € 0.00 | X145: € 0.00 | Y145: € 0.00 | Z145: € 0.00 | AA145: € 0.00 | AB145: 0 | AC145: € 17,280.00 | AD145: € 121,800.00
D146: Tomato (0702) | E146: € 25,258.00 | F146: € 27,648.00 | G146: € 0.00 | H146: € 0.00 | I146: € 5,200.00 | J146: € 7,000.00 | K146: € 0.00 | L146: € 0.00 | M146: € 0.00 | N146: € 0.00 | O146: € 104,520.00 | P146: € 0.00 | Q146: € 3,360.00 | R146: € 6,000.00 | S146: € 600.00 | T146: € 600.00 | U146: € 1,250.00 | V146: € 2,500.00 | W146: € 1,000.00 | X146: € 1,000.00 | Y146: € 0.00 | Z146: € 0.00 | AA146: € 0.00 | AB146: 0 | AC146: € 141,188.00 | AD146: € 44,748.00
D147: Cherry Tomatoes (0702.00.00.07) | E147: € 0.00 | F147: € 0.00 | G147: € 0.00 | H147: € 0.00 | I147: € 0.00 | J147: € 0.00 | K147: € 0.00 | L147: € 0.00 | M147: € 0.00 | N147: € 0.00 | O147: € 0.00 | P147: € 0.00 | Q147: € 0.00 | R147: € 0.00 | S147: € 0.00 | T147: € 0.00 | U147: € 0.00 | V147: € 0.00 | W147: € 0.00 | X147: € 0.00 | Y147: € 0.00 | Z147: € 0.00 | AA147: € 0.00 | AB147: 0 | AC147: € 0.00 | AD147: € 0.00
D148: Cauliflower (0704.10) | E148: € 884.00 | F148: € 1,000.00 | G148: € 0.00 | H148: € 0.00 | I148: € 0.00 | J148: € 0.00 | K148: € 0.00 | L148: € 0.00 | M148: € 0.00 | N148: € 0.00 | O148: € 0.00 | P148: € 0.00 | Q148: € 0.00 | R148: € 0.00 | S148: € 0.00 | T148: € 0.00 | U148: € 0.00 | V148: € 0.00 | W148: € 400.00 | X148: € 0.00 | Y148: € 0.00 | Z148: € 0.00 | AA148: € 0.00 | AB148: € 0.00 | AC148: € 1,284.00 | AD148: € 1,000.00
D149: Broccoli (0704.10) | E149: € 426.40 | F149: € 1,100.00 | G149: € 0.00 | H149: € 0.00 | I149: € 1,600.00 | J149: € 2,000.00 | K149: € 0.00 | L149: € 0.00 | M149: € 0.00 | N149: € 0.00 | O149: € 0.00 | P149: € 0.00 | Q149: € 0.00 | R149: € 0.00 | S149: € 0.00 | T149: € 0.00 | U149: € 0.00 | V149: € 0.00 | W149: € 0.00 | X149: € 400.00 | Y149: € 0.00 | Z149: € 0.00 | AA149: € 0.00 | AB149: 0 | AC149: € 2,026.40 | AD149: € 3,500.00
D150: Grapevine Leaves (0709) | E150: € 0.00 | F150: € 0.00 | G150: € 0.00 | H150: € 0.00 | I150: € 0.00 | J150: € 0.00 | K150: € 0.00 | L150: € 0.00 | M150: € 0.00 | N150: € 0.00 | O150: € 0.00 | P150: € 0.00 | Q150: € 0.00 | R150: € 0.00 | S150: € 0.00 | T150: € 0.00 | U150: € 0.00 | V150: € 0.00 | W150: € 0.00 | X150: € 0.00 | Y150: € 0.00 | Z150: € 0.00 | AA150: € 0.00 | AB150: 0 | AC150: € 0.00 | AD150: € 0.00
D151: Beetroot(0706) | E151: € 0.00 | F151: € 0.00 | G151: € 0.00 | H151: € 0.00 | I151: € 0.00 | J151: € 0.00 | K151: € 0.00 | L151: € 0.00 | M151: € 0.00 | N151: € 0.00 | O151: € 0.00 | P151: € 0.00 | Q151: € 0.00 | R151: € 0.00 | S151: € 0.00 | T151: € 0.00 | U151: € 0.00 | V151: € 0.00 | W151: € 900.00 | X151: € 900.00 | Y151: € 3,200.00 | Z151: € 3,400.00 | AA151: € 0.00 | AB151: 0 | AC151: € 4,100.00 | AD151: € 4,300.00
D152: Celery(0709.40) | E152: € 0.00 | F152: € 0.00 | G152: € 0.00 | H152: € 0.00 | I152: € 0.00 | J152: € 0.00 | K152: € 0.00 | L152: € 0.00 | M152: € 0.00 | N152: € 0.00 | O152: € 0.00 | P152: € 0.00 | Q152: € 0.00 | R152: € 0.00 | S152: € 0.00 | T152: € 0.00 | U152: € 0.00 | V152: € 0.00 | W152: € 0.00 | X152: € 0.00 | Y152: € 0.00 | Z152: € 0.00 | AA152: € 0.00 | AB152: 0 | AC152: € 0.00 | AD152: € 0.00
C153: Group Total | E153: =SUM(E126:E152) -> € 66,303.10 | F153: € 76,598.00 | G153: € 257.00 | H153: € 2,000.00 | I153: € 13,570.00 | J153: € 18,850.00 | K153: € 500.00 | L153: € 500.00 | M153: € 0.00 | N153: € 0.00 | O153: € 106,570.00 | P153: € 108,370.00 | Q153: € 5,140.00 | R153: € 13,600.00 | S153: € 18,880.00 | T153: € 18,880.00 | U153: € 14,150.00 | V153: € 15,400.00 | W153: € 5,428.00 | X153: € 6,550.00 | Y153: € 11,265.20 | Z153: € 11,475.00 | AA153: € 12,850.00 | AB153: =SUM(AB126:AB152) -> € 16,950.00 | AC153: € 254,913.30 | AD153: € 289,173.00
C154: Fruits | D154: Orange (0805.10) | E154: € 0.00 | F154: € 0.00 | G154: € 0.00 | H154: € 0.00 | I154: € 0.00 | J154: € 0.00 | K154: € 0.00 | L154: € 0.00 | M154: € 0.00 | N154: € 0.00 | O154: € 0.00 | P154: € 0.00 | Q154: € 0.00 | R154: € 0.00 | S154: € 0.00 | T154: € 0.00 | U154: € 0.00 | V154: € 0.00 | W154: € 0.00 | X154: € 0.00 | Y154: € 0.00 | Z154: € 0.00 | AA154: € 0.00 | AB154: 0 | AC154: € 0.00 | AD154: € 0.00
D155: Apricot (0809.1000) | E155: € 0.00 | F155: € 0.00 | G155: € 0.00 | H155: € 0.00 | I155: € 0.00 | J155: € 0.00 | K155: € 0.00 | L155: € 0.00 | M155: € 0.00 | N155: € 0.00 | O155: € 0.00 | P155: € 0.00 | Q155: € 0.00 | R155: € 0.00 | S155: € 0.00 | T155: € 0.00 | U155: € 0.00 | V155: € 0.00 | W155: € 0.00 | X155: € 0.00 | Y155: € 0.00 | Z155: € 0.00 | AA155: € 0.00 | AB155: 0 | AC155: € 0.00 | AD155: € 0.00
D156: Peach (0809.3090) | E156: € 0.00 | F156: € 0.00 | G156: € 0.00 | H156: € 0.00 | I156: € 0.00 | J156: € 0.00 | K156: € 0.00 | L156: € 0.00 | M156: € 0.00 | N156: € 0.00 | O156: € 0.00 | P156: € 0.00 | Q156: € 0.00 | R156: € 0.00 | S156: € 0.00 | T156: € 0.00 | U156: € 0.00 | V156: € 0.00 | W156: € 0.00 | X156: € 0.00 | Y156: € 0.00 | Z156: € 0.00 | AA156: € 0.00 | AB156: 0 | AC156: € 0.00 | AD156: € 0.00
D157: Plum (0809.4005) | E157: € 0.00 | F157: € 0.00 | G157: € 0.00 | H157: € 0.00 | I157: € 0.00 | J157: € 0.00 | K157: € 0.00 | L157: € 0.00 | M157: € 0.00 | N157: € 0.00 | O157: € 0.00 | P157: € 0.00 | Q157: € 0.00 | R157: € 0.00 | S157: € 0.00 | T157: € 0.00 | U157: € 0.00 | V157: € 0.00 | W157: € 0.00 | X157: € 0.00 | Y157: € 0.00 | Z157: € 0.00 | AA157: € 0.00 | AB157: 0 | AC157: € 0.00 | AD157: € 0.00
D158: Strawberry (0810.10) | E158: € 0.00 | F158: € 0.00 | G158: € 0.00 | H158: € 0.00 | I158: € 0.00 | J158: € 0.00 | K158: € 0.00 | L158: € 0.00 | M158: € 0.00 | N158: € 0.00 | O158: € 0.00 | P158: € 0.00 | Q158: € 0.00 | R158: € 0.00 | S158: € 0.00 | T158: € 0.00 | U158: € 0.00 | V158: € 0.00 | W158: € 0.00 | X158: € 0.00 | Y158: € 0.00 | Z158: € 0.00 | AA158: € 0.00 | AB158: 0 | AC158: € 0.00 | AD158: € 0.00
D159: Watermelon (0807.11) | E159: € 0.00 | F159: € 0.00 | G159: € 0.00 | H159: € 0.00 | I159: € 0.00 | J159: € 0.00 | K159: € 1,000.00 | L159: € 1,000.00 | M159: € 0.00 | N159: € 0.00 | O159: € 12,640.00 | P159: € 16,900.00 | Q159: € 31,925.00 | R159: € 42,000.00 | S159: € 0.00 | T159: € 0.00 | U159: € 0.00 | V159: € 0.00 | W159: € 0.00 | X159: € 0.00 | Y159: € 0.00 | Z159: € 0.00 | AA159: € 0.00 | AB159: 0 | AC159: € 45,565.00 | AD159: € 59,900.00
D160: Physalis / Ground Cherry (0809.2095) | E160: € 0.00 | F160: € 0.00 | G160: € 0.00 | H160: € 0.00 | I160: € 0.00 | J160: € 0.00 | K160: € 0.00 | L160: € 0.00 | M160: € 0.00 | N160: € 0.00 | O160: € 0.00 | P160: € 0.00 | Q160: € 0.00 | R160: € 0.00 | S160: € 0.00 | T160: € 0.00 | U160: € 0.00 | V160: € 0.00 | W160: € 0.00 | X160: € 0.00 | Y160: € 0.00 | Z160: € 0.00 | AA160: € 0.00 | AB160: 0 | AC160: € 0.00 | AD160: € 0.00
D161: Pomegranates (0810.90.95.30) | E161: € 0.00 | F161: € 0.00 | G161: € 0.00 | H161: € 0.00 | I161: € 0.00 | J161: € 0.00 | K161: € 0.00 | L161: € 0.00 | M161: € 0.00 | N161: € 0.00 | O161: € 0.00 | P161: € 0.00 | Q161: € 0.00 | R161: € 0.00 | S161: € 0.00 | T161: € 0.00 | U161: € 0.00 | V161: € 0.00 | W161: € 0.00 | X161: € 0.00 | Y161: € 0.00 | Z161: € 0.00 | AA161: € 0.00 | AB161: 0 | AC161: € 0.00 | AD161: € 0.00
D162: Passion Fruit (0810.90,20) | E162: € 0.00 | F162: € 0.00 | G162: € 0.00 | H162: € 0.00 | I162: € 0.00 | J162: € 0.00 | K162: € 0.00 | L162: € 0.00 | M162: € 0.00 | N162: € 0.00 | O162: € 0.00 | P162: € 0.00 | Q162: € 0.00 | R162: € 0.00 | S162: € 0.00 | T162: € 0.00 | U162: € 0.00 | V162: € 0.00 | W162: € 0.00 | X162: € 0.00 | Y162: € 0.00 | Z162: € 0.00 | AA162: € 0.00 | AB162: 0 | AC162: € 0.00 | AD162: € 0.00
C163: Group Total | E163: =SUM(E154:E162) -> € 0.00 | F163: € 0.00 | G163: € 0.00 | H163: € 0.00 | I163: € 0.00 | J163: € 0.00 | K163: € 1,000.00 | L163: € 1,000.00 | M163: € 0.00 | N163: € 0.00 | O163: € 12,640.00 | P163: € 16,900.00 | Q163: € 31,925.00 | R163: € 42,000.00 | S163: € 0.00 | T163: € 0.00 | U163: € 0.00 | V163: € 0.00 | W163: € 0.00 | X163: € 0.00 | Y163: € 0.00 | Z163: € 0.00 | AA163: € 0.00 | AB163: € 0.00 | AC163: € 45,565.00 | AD163: € 59,900.00
C164: Miscallaneous grains, seeds and fruit | D164: Vetches and similar forage products (1214.90) | E164: € 0.00 | F164: € 0.00 | G164: € 5,500.00 | H164: € 5,500.00 | I164: € 5,000.00 | J164: € 5,000.00 | K164: € 60,080.00 | L164: € 88,000.00 | M164: € 0.00 | N164: € 0.00 | O164: € 0.00 | P164: € 0.00 | Q164: € 0.00 | R164: € 0.00 | S164: € 0.00 | T164: € 0.00 | U164: € 0.00 | V164: € 0.00 | W164: € 0.00 | X164: € 0.00 | Y164: € 0.00 | Z164: € 0.00 | AA164: € 0.00 | AB164: € 0.00 | AC164: € 70,580.00 | AD164: € 98,500.00
D165: Locust Beans (1212) | E165: € 0.00 | F165: € 0.00 | G165: € 0.00 | H165: € 0.00 | I165: € 0.00 | J165: € 0.00 | K165: € 0.00 | L165: € 0.00 | M165: € 0.00 | N165: € 0.00 | O165: € 6,600.00 | P165: € 6,600.00 | Q165: € 0.00 | R165: € 0.00 | S165: € 0.00 | T165: € 0.00 | U165: € 0.00 | V165: € 0.00 | W165: € 0.00 | X165: € 0.00 | Y165: € 0.00 | Z165: € 0.00 | AA165: € 0.00 | AB165: 0 | AC165: € 6,600.00 | AD165: € 6,600.00
D166: Corn Stalk (1213) | E166: € 0.00 | F166: € 0.00 | G166: € 0.00 | H166: € 0.00 | I166: € 30.00 | J166: € 30.00 | K166: € 0.00 | L166: € 0.00 | M166: € 0.00 | N166: € 0.00 | O166: € 0.00 | P166: € 0.00 | Q166: € 0.00 | R166: € 0.00 | S166: € 0.00 | T166: € 0.00 | U166: € 0.00 | V166: € 0.00 | W166: € 0.00 | X166: € 0.00 | Y166: € 0.00 | Z166: € 0.00 | AA166: € 0.00 | AB166: € 0.00 | AC166: € 30.00 | AD166: € 30.00
C167: Group Total | E167: =SUM(E164:E166) -> € 0.00 | F167: € 0.00 | G167: € 5,500.00 | H167: € 5,500.00 | I167: € 5,030.00 | J167: € 5,030.00 | K167: € 60,080.00 | L167: € 88,000.00 | M167: € 0.00 | N167: € 0.00 | O167: € 6,600.00 | P167: € 6,600.00 | Q167: € 0.00 | R167: € 0.00 | S167: € 0.00 | T167: € 0.00 | U167: € 0.00 | V167: € 0.00 | W167: € 0.00 | X167: € 0.00 | Y167: € 0.00 | Z167: € 0.00 | AA167: € 0.00 | AB167: € 0.00 | AC167: € 77,210.00 | AD167: € 105,130.00
B168: Section Total | E168: =E153+E163+E167 -> € 66,303.10 | F168: € 76,598.00 | G168: € 5,757.00 | H168: € 7,500.00 | I168: € 18,600.00 | J168: € 23,880.00 | K168: € 61,580.00 | L168: € 89,500.00 | M168: € 0.00 | N168: € 0.00 | O168: € 125,810.00 | P168: € 131,870.00 | Q168: € 37,065.00 | R168: € 55,600.00 | S168: € 18,880.00 | T168: € 18,880.00 | U168: € 14,150.00 | V168: € 15,400.00 | W168: € 5,428.00 | X168: € 6,550.00 | Y168: € 11,265.20 | Z168: € 11,475.00 | AA168: € 12,850.00 | AB168: € 16,950.00 | AC168: € 377,688.30 | AD168: € 454,203.00
B169: ANIMAL OR VEGETABLE FATS AND OILS AND THEIR CLEAVAGE PRODUCTS | C169: Animal or vegetable fats and oils and their cleavage products | D169: Olive Oil (1509.10) | E169: € 0.00 | F169: € 0.00 | G169: € 0.00 | H169: € 0.00 | I169: € 0.00 | J169: € 0.00 | K169: € 0.00 | L169: € 0.00 | M169: € 0.00 | N169: € 0.00 | O169: € 0.00 | P169: € 0.00 | Q169: € 0.00 | R169: € 0.00 | S169: € 0.00 | T169: € 0.00 | U169: € 0.00 | V169: € 0.00 | W169: € 0.00 | X169: € 0.00 | Y169: € 0.00 | Z169: € 0.00 | AA169: € 0.00 | AB169: 0 | AC169: € 0.00 | AD169: € 0.00
C170: Group Total | E170: =SUM(E169) -> € 0.00 | F170: € 0.00 | G170: € 0.00 | H170: € 0.00 | I170: € 0.00 | J170: € 0.00 | K170: € 0.00 | L170: € 0.00 | M170: € 0.00 | N170: € 0.00 | O170: € 0.00 | P170: € 0.00 | Q170: € 0.00 | R170: € 0.00 | S170: € 0.00 | T170: € 0.00 | U170: € 0.00 | V170: € 0.00 | W170: € 0.00 | X170: € 0.00 | Y170: € 0.00 | Z170: € 0.00 | AA170: € 0.00 | AB170: =SUM(AB169) -> € 0.00 | AC170: € 0.00 | AD170: € 0.00
B171: Section Total | E171: =E170 -> € 0.00 | F171: € 0.00 | G171: € 0.00 | H171: € 0.00 | I171: € 0.00 | J171: € 0.00 | K171: € 0.00 | L171: € 0.00 | M171: € 0.00 | N171: € 0.00 | O171: € 0.00 | P171: € 0.00 | Q171: € 0.00 | R171: € 0.00 | S171: € 0.00 | T171: € 0.00 | U171: € 0.00 | V171: € 0.00 | W171: € 0.00 | X171: € 0.00 | Y171: € 0.00 | Z171: € 0.00 | AA171: € 0.00 | AB171: € 0.00 | AC171: € 0.00 | AD171: € 0.00
B172: WOOD AND ARTICLES OF WOOD | C172: Manufactures of Straw | D172: Basketwork, wickerwork and other articles (4602) | E172: € 1,068.00 | F172: € 1,544.00 | G172: € 991.00 | H172: € 1,982.00 | I172: € 2,748.00 | J172: € 3,410.00 | K172: € 3,318.00 | L172: € 3,523.00 | M172: € 1,557.00 | N172: € 2,219.00 | O172: € 1,884.00 | P172: € 2,424.00 | Q172: € 0.00 | R172: € 0.00 | S172: € 0.00 | T172: € 0.00 | U172: € 0.00 | V172: € 0.00 | W172: € 904.00 | X172: € 1,900.00 | Y172: € 0.00 | Z172: € 0.00 | AA172: € 0.00 | AB172: 0 | AC172: € 12,470.00 | AD172: =+F172+H172+J172+L172+N172+P172+R172+T172+V172+X172+Z172+AB172 -> € 17,002.00
D173: Matting (4601) | E173: € 0.00 | F173: € 0.00 | G173: € 0.00 | H173: € 0.00 | I173: € 0.00 | J173: € 0.00 | K173: € 0.00 | L173: € 0.00 | M173: € 0.00 | N173: € 0.00 | O173: € 180.00 | P173: € 180.00 | Q173: € 919.00 | R173: € 1,384.00 | S173: € 1,712.00 | T173: € 2,242.00 | U173: € 1,223.00 | V173: € 1,223.00 | W173: € 1,947.00 | X173: € 1,947.00 | Y173: € 1,259.00 | Z173: € 1,324.00 | AA173: € 1,184.00 | AB173: 994 | AC173: € 8,424.00 | AD173: € 9,294.00
C174: Group Total | E174: =SUM(E172:E173) -> € 1,068.00 | F174: € 1,544.00 | G174: € 991.00 | H174: € 1,982.00 | I174: € 2,748.00 | J174: € 3,410.00 | K174: € 3,318.00 | L174: € 3,523.00 | M174: € 1,557.00 | N174: € 2,219.00 | O174: € 2,064.00 | P174: € 2,604.00 | Q174: € 919.00 | R174: € 1,384.00 | S174: € 1,712.00 | T174: € 2,242.00 | U174: € 1,223.00 | V174: € 1,223.00 | W174: € 2,851.00 | X174: € 3,847.00 | Y174: € 1,259.00 | Z174: € 1,324.00 | AA174: € 1,184.00 | AB174: € 994.00 | AC174: € 20,894.00 | AD174: =SUM(AD172:AD173) -> € 26,296.00
C175: Wood and Articles of Wood | D175: Citrus Wood (4403) | E175: € 0.00 | F175: € 0.00 | G175: € 0.00 | H175: € 0.00 | I175: € 0.00 | J175: € 0.00 | K175: € 0.00 | L175: € 0.00 | M175: € 0.00 | N175: € 0.00 | O175: € 0.00 | P175: € 0.00 | Q175: € 0.00 | R175: € 0.00 | S175: € 0.00 | T175: € 0.00 | U175: € 0.00 | V175: € 0.00 | W175: € 0.00 | X175: € 0.00 | Y175: € 0.00 | Z175: € 0.00 | AA175: € 0.00 | AB175: € 0.00 | AC175: € 0.00 | AD175: € 0.00
D176: Wood Briquettes (4401) | E176: € 0.00 | F176: € 0.00 | G176: € 0.00 | H176: € 0.00 | I176: € 0.00 | J176: € 0.00 | K176: € 0.00 | L176: € 0.00 | M176: € 0.00 | N176: € 0.00 | O176: € 0.00 | P176: € 0.00 | Q176: € 0.00 | R176: € 0.00 | S176: € 0.00 | T176: € 0.00 | U176: € 0.00 | V176: € 0.00 | W176: € 0.00 | X176: € 0.00 | Y176: € 0.00 | Z176: € 0.00 | AA176: € 0.00 | AB176: € 0.00 | AC176: € 0.00 | AD176: € 0.00
C177: Group Total | E177: =SUM(E175:E176) -> € 0.00 | F177: € 0.00 | G177: € 0.00 | H177: € 0.00 | I177: € 0.00 | J177: € 0.00 | K177: € 0.00 | L177: € 0.00 | M177: € 0.00 | N177: € 0.00 | O177: € 0.00 | P177: € 0.00 | Q177: € 0.00 | R177: € 0.00 | S177: € 0.00 | T177: € 0.00 | U177: € 0.00 | V177: € 0.00 | W177: € 0.00 | X177: € 0.00 | Y177: € 0.00 | Z177: € 0.00 | AA177: € 0.00 | AB177: € 0.00 | AC177: € 0.00 | AD177: € 0.00
C178: Builders' joinery and carpentry of wood | D178: Doors and their frames & thresholds (4418.20) | E178: € 80.26 | F178: € 80.26 | G178: € 0.00 | H178: € 0.00 | I178: € 100.00 | J178: € 100.00 | K178: € 0.00 | L178: € 0.00 | M178: € 0.00 | N178: € 0.00 | O178: € 300.00 | P178: € 300.00 | Q178: € 700.00 | R178: € 700.00 | S178: € 0.00 | T178: € 0.00 | U178: € 0.00 | V178: € 0.00 | W178: € 0.00 | X178: € 0.00 | Y178: € 0.00 | Z178: € 0.00 | AA178: € 0.00 | AB178: 0 | AC178: € 1,180.26 | AD178: € 1,180.26
D179: Posts and beams (4418) | E179: € 0.00 | F179: € 0.00 | G179: € 0.00 | H179: € 0.00 | I179: € 0.00 | J179: € 0.00 | K179: € 0.00 | L179: € 0.00 | M179: € 0.00 | N179: € 0.00 | O179: € 0.00 | P179: € 0.00 | Q179: € 0.00 | R179: € 0.00 | S179: € 0.00 | T179: € 0.00 | U179: € 0.00 | V179: € 0.00 | W179: € 0.00 | X179: € 0.00 | Y179: € 0.00 | Z179: € 0.00 | AA179: € 0.00 | AB179: 0 | AC179: € 0.00 | AD179: € 0.00
C180: Group Total | E180: =SUM(E178:E179) -> € 80.26 | F180: € 80.26 | G180: € 0.00 | H180: € 0.00 | I180: € 100.00 | J180: € 100.00 | K180: € 0.00 | L180: € 0.00 | M180: € 0.00 | N180: € 0.00 | O180: € 300.00 | P180: € 300.00 | Q180: € 700.00 | R180: € 700.00 | S180: € 0.00 | T180: € 0.00 | U180: € 0.00 | V180: € 0.00 | W180: € 0.00 | X180: € 0.00 | Y180: € 0.00 | Z180: € 0.00 | AA180: € 0.00 | AB180: € 0.00 | AC180: € 1,180.26 | AD180: € 1,180.26
B181: Section Total | E181: =E174+E177+E180 -> € 1,148.26 | F181: € 1,624.26 | G181: € 991.00 | H181: € 1,982.00 | I181: € 2,848.00 | J181: € 3,510.00 | K181: € 3,318.00 | L181: € 3,523.00 | M181: € 1,557.00 | N181: € 2,219.00 | O181: € 2,364.00 | P181: € 2,904.00 | Q181: € 1,619.00 | R181: € 2,084.00 | S181: € 1,712.00 | T181: € 2,242.00 | U181: € 1,223.00 | V181: € 1,223.00 | W181: € 2,851.00 | X181: € 3,847.00 | Y181: € 1,259.00 | Z181: € 1,324.00 | AA181: € 1,184.00 | AB181: € 994.00 | AC181: € 22,074.26 | AD181: € 27,476.26
B182: Works of art, collectors' pieces and antiques | C182: Works of Art | D182: Paintings, drawings and pastels, executed entirely by hand (9701.10) | E182: € 0.00 | F182: € 0.00 | G182: € 0.00 | H182: € 0.00 | I182: € 0.00 | J182: € 0.00 | K182: € 0.00 | L182: € 0.00 | M182: € 0.00 | N182: € 0.00 | O182: € 0.00 | P182: € 0.00 | Q182: € 0.00 | R182: € 0.00 | S182: € 0.00 | T182: € 0.00 | U182: € 0.00 | V182: € 0.00 | W182: € 0.00 | X182: € 0.00 | Y182: € 0.00 | Z182: € 0.00 | AA182: € 0.00 | AB182: 0 | AC182: € 0.00 | AD182: € 0.00
C183: Group Total | E183: =SUM(E182) -> € 0.00 | F183: € 0.00 | G183: € 0.00 | H183: € 0.00 | I183: € 0.00 | J183: € 0.00 | K183: € 0.00 | L183: € 0.00 | M183: € 0.00 | N183: € 0.00 | O183: € 0.00 | P183: € 0.00 | Q183: € 0.00 | R183: € 0.00 | S183: € 0.00 | T183: € 0.00 | U183: € 0.00 | V183: € 0.00 | W183: € 0.00 | X183: € 0.00 | Y183: € 0.00 | Z183: € 0.00 | AA183: € 0.00 | AB183: =SUM(AB182) -> € 0.00 | AC183: € 0.00 | AD183: € 0.00
B184: Section Total | E184: =E183 -> € 0.00 | F184: € 0.00 | G184: € 0.00 | H184: € 0.00 | I184: € 0.00 | J184: € 0.00 | K184: € 0.00 | L184: € 0.00 | M184: € 0.00 | N184: € 0.00 | O184: € 0.00 | P184: € 0.00 | Q184: € 0.00 | R184: € 0.00 | S184: € 0.00 | T184: € 0.00 | U184: € 0.00 | V184: € 0.00 | W184: € 0.00 | X184: € 0.00 | Y184: € 0.00 | Z184: € 0.00 | AA184: € 0.00 | AB184: € 0.00 | AC184: € 0.00 | AD184: € 0.00
B185: GRAND TOTAL | E185: =E30+E36+E59+E65+E73+E82+E85+E90+E97+E106+E116+E119+E125+E168+E181+E184 -> € 358,094.12 | F185: € 389,834.22 | G185: € 327,734.89 | H185: € 342,348.89 | I185: € 378,697.12 | J185: € 445,618.12 | K185: € 417,108.42 | L185: € 462,795.10 | M185: € 265,495.99 | N185: € 284,670.84 | O185: € 393,965.27 | P185: € 418,518.26 | Q185: € 319,995.05 | R185: € 360,125.10 | S185: € 236,250.37 | T185: € 311,356.87 | U185: € 300,619.27 | V185: € 325,330.77 | W185: € 282,346.19 | X185: € 338,686.78 | Y185: € 295,607.68 | Z185: € 341,892.43 | AA185: € 260,931.24 | AB185: € 290,438.04 | AC185: € 3,836,845.61 | AD185: € 4,311,615.42
A188: * These figures are formed by summing the values of all Accompanying Documents issued, minus the uncompleted consignements depending on the crossing confirmations received from the Greek Cypriot customs authorities, SBAs and from the traders. The shipments that are not cancelled, but also 'not' confirmed, are also included. The figures mentioned in this column do not necessarily reflect all goods actually crossing the Greenline as they are based on voluntary feedback.
